{"text_format":"1","workbook":"xlsx","n_sheets":3,"sheets":["SIP to PRI","Phone","Fax"],"not_rendered":{"charts":0,"images":1,"macros":1,"external_links":0,"defined_names":0,"comments":0,"pivot_tables":0},"unopened":[],"bounds":{"document_bytes":16777216,"sheet_cells":100000,"rows_first":2000,"rows_last":500,"rows_between":2000,"halvings":0,"cell_chars":16384,"cell_head_chars":4096},"cells_cut":0,"cells_raw":0,"read":"whole","date_system":"1900"}

{"sheet":"SIP to PRI","index":0,"n_rows":363,"n_cols":4,"rows_kept":363,"cut":false,"hidden":false,"merged":[[304,0,306,0],[285,0,287,1],[2,0,2,3],[0,0,0,3],[3,0,3,3],[4,0,4,3],[5,0,5,3]]}
["Adtran TA-900 IAD Configuration Worksheet"]
[]
["Fill in the variables in Blue in order to get a  deployable, custom Adtran TA900 configuration.  Selectively copy and paste relevant elements into your device."]
["This config will provision two PRI Handoff's in the same Trunk Group.  You can exclude config for T03 if you are only provisioning one PRI"]
["Use the Phone and Fax tabs to create further configuration to support FXS ports for either Phone Line or Fax line functionality"]
["Pre-Requisite is to have already created a generic Device in Avalo and set Invite format to NPA NXXX XXXX on SIP Tab"]
[null,null,null,"!"]
[null,null,null,"!"]
["Hostname","Insert Hostname Here",null,{"$f":"CONCATENATE(\"hostname \",$B$9)","v":"hostname Insert Hostname Here"}]
[null,null,null,{"$f":"CONCATENATE(\"enable password \",$B$11)","v":"enable password \"this is the passcode\""}]
["enable Password","\"this is the passcode\"",null,"!"]
[null,null,null,"!"]
[null,null,null,"clock timezone -8"]
[null,null,null,"!"]
[null,null,null,"ip subnet-zero"]
[null,null,null,"ip classless"]
[null,null,null,"ip routing"]
[null,null,null,"ipv6 unicast-routing"]
[null,null,null,"!"]
[null,null,null,"!"]
[null,null,null,"name-server 8.8.8.8 8.8.4.4 "]
[null,null,null,"!"]
[null,null,null,"!"]
[null,null,null,"no auto-config"]
[null,null,null,"!"]
[null,null,null,"event-history on"]
[null,null,null,"no logging forwarding"]
[null,null,null,"no logging email"]
[null,null,null,"!"]
[null,null,null,"service password-encryption"]
[null,null,null,"!"]
[null,null,null,{"$f":"CONCATENATE(\"username admin password \",$B$11)","v":"username admin password \"this is the passcode\""}]
[null,null,null,"!"]
[null,null,null,"ip policy-timeout icmp 30"]
[null,null,null,"!"]
[null,null,null,"ip firewall"]
[null,null,null,"no ip firewall alg ftp"]
[null,null,null,"no ip firewall alg msn"]
[null,null,null,"no ip firewall alg mszone"]
[null,null,null,"no ip firewall alg pptp"]
[null,null,null,"no ip firewall alg h323"]
[null,null,null,"!"]
[null,null,null,"!"]
[null,null,null,"!"]
[null,null,null,"!"]
[null,null,null,"!"]
[null,null,null,"!"]
[null,null,null,"!"]
[null,null,null,"!"]
[null,null,null,"no dot11ap access-point-control"]
[null,null,null,"!"]
[null,null,null,"!"]
[null,null,null,"!"]
[null,null,null,"!"]
[null,null,null,"!"]
[null,null,null,"!"]
[null,null,null,"!"]
[null,null,null,"!"]
[null,null,null,"!"]
[null,null,null,"!"]
[null,null,null,"!"]
[null,null,null,"ip crypto ffe"]
[null,null,null,"!"]
[null,null,null,"!"]
[null,null,null,"!"]
[null,null,null,"!"]
[null,null,null,"!"]
[null,null,null,"!"]
["Secondary Ethernet port? Y/N","Y",null,"!"]
["Primary LAN Interface Name","LAN",null,{"$f":"IF($B$69=\"Y\",(CONCATENATE(\"interface \",$B$71)),\"!\")","v":"interface eth 0/2"}]
["Primary LAN Interface Number","eth 0/2",null,{"$f":"IF($B$69=\"Y\",CONCATENATE(\"  description \",$B$70),\"!\")","v":"  description LAN"}]
["Primary LAN Interface IP Address","10.10.10.1",null,{"$f":" IF($B$69=\"Y\",CONCATENATE(\"  ip address \",$B$72,\" \",$B$73),\"!\")","v":"  ip address 10.10.10.1 255.255.255.0"}]
["Primary LAN Interface Subnet","255.255.255.0",null,{"$f":"IF($B$69=\"Y\",\"  ip access-policy private\",\"!\")","v":"  ip access-policy private"}]
["Primary LAN Interface Gateway",null,null,{"$f":"IF($B$69=\"Y\",\"  no awcp\",\"!\")","v":"  no awcp"}]
[null,null,null,{"$f":"IF($B$69=\"Y\",\"  media-gateway ip primary\",\"!\")","v":"  media-gateway ip primary"}]
[null,null,null,{"$f":"IF($B$69=\"Y\",\"  no shutdown\",\"!\")","v":"  no shutdown"}]
[null,null,null,"!"]
[null,null,null,"!"]
["Primary WAN Interface Name","WAN",null,{"$f":"CONCATENATE(\"interface \",$B$80)","v":"interface eth 0/1"}]
["Primary WAN Interface Number","eth 0/1",null,{"$f":"CONCATENATE(\"  description \",$B$79)","v":"  description WAN"}]
["Primary WAN Interface IP Address","208.77.233.151",null,{"$f":" CONCATENATE(\"  ip address \",$B$81,\" \",$B$82)","v":"  ip address 208.77.233.151 255.255.255.240"}]
["Primary WAN Interface Subnet","255.255.255.240",null,"  ip access-policy Public"]
["Primary WAN Interface Gateway","208.77.233.145",null,"  media-gateway ip primary"]
[null,null,null,"  no awcp"]
[null,null,null,"  no shutdown"]
[null,null,null,"!"]
[null,null,null,"!"]
[null,null,null,"!"]
[null,null,null,"!"]
[null,null,null,"interface t1 0/1"]
[null,null,null,"  description PRI 4"]
[null,null,null,"  tdm-group 1 timeslots 1-24 speed 64"]
[null,null,null,"  shutdown"]
[null,null,null,"!"]
[null,null,null,"interface t1 0/2"]
[null,null,null,"  description PRI 3"]
[null,null,null,"  tdm-group 1 timeslots 1-24 speed 64"]
[null,null,null,"  shutdown"]
[null,null,null,"!"]
[null,null,null,"interface t1 0/3"]
[null,null,null,"  description PRI 2"]
[null,null,null,"  tdm-group 1 timeslots 1-24 speed 64"]
[null,null,null,"  no shutdown"]
[null,null,null,"!"]
[null,null,null,"interface t1 0/4"]
[null,null,null,"  description PRI 1"]
[null,null,null,"  tdm-group 1 timeslots 1-24 speed 64"]
[null,null,null,"  no shutdown"]
[null,null,null,"!"]
[null,null,null,"!"]
[null,null,null,"interface pri 1"]
[null,null,null,"  description pri 1"]
[null,null,null,"  isdn name-delivery setup"]
[null,null,null,"  connect t1 0/4 tdm-group 1"]
[null,null,null,"  no shutdown"]
[null,null,null,"!"]
[null,null,null,"interface pri 2"]
[null,null,null,"  description pri 2"]
[null,null,null,"  isdn name-delivery setup"]
[null,null,null,"  connect t1 0/3 tdm-group 1"]
[null,null,null,"  no shutdown"]
[null,null,null,"!"]
[null,null,null,"!"]
[null,null,null,"!"]
[null,null,null,"isdn-group 1"]
[null,null,null,"  min-channels 23"]
[null,null,null,"  max-channels 23"]
[null,null,null,"  connect pri 1"]
[null,null,null,"!"]
[null,null,null,"!"]
[null,null,null,"isdn-group 2"]
[null,null,null,"  min-channels 23"]
[null,null,null,"  max-channels 23"]
[null,null,null,"  connect pri 2"]
[null,null,null,"!"]
[null,null,null,"!"]
[null,null,null,"!"]
[null,null,null,"!"]
[null,null,null,"!"]
[null,null,null,"!"]
[null,null,null,"!"]
[null,null,null,"!"]
[null,null,null,"ip access-list extended web-acl-1"]
[null,null,null,"  remark allow admin"]
[null,null,null,"  permit tcp any  any eq www   log"]
[null,null,null,"  permit tcp any  any eq telnet   log"]
[null,null,null,"  permit udp any  any eq snmp    log"]
[null,null,null,"  permit tcp any  any eq https   log"]
[null,null,null,"  permit tcp any  any eq ssh   log"]
[null,null,null,"  permit icmp any  any  echo   log"]
[null,null,null,"!"]
[null,null,null,"ip access-list extended web-acl-2"]
[null,null,null,"  remark Allow from SIP Carrier"]
[null,null,null,"  permit ip any  any    "]
[null,null,null,"!"]
[null,null,null,"ip access-list extended web-acl-3"]
[null,null,null,"  remark Admin Access"]
[null,null,null,"  permit icmp any  any  echo   log"]
["Admin Source IP Network Number","108.13.229.0",null,{"$f":"CONCATENATE(\"  permit tcp \",$B$159,\" \",$B$160,\"  any eq www   log\")","v":"  permit tcp 108.13.229.0 0.0.0.255  any eq www   log"}]
["Admin Source IP Reverse Mask","0.0.0.255",null,{"$f":"CONCATENATE(\"  permit tcp \",$B$159,\" \",$B$160,\"  any eq snmp   log\")","v":"  permit tcp 108.13.229.0 0.0.0.255  any eq snmp   log"}]
["Sec Admin Source IP Network Number","208.77.233.0",null,{"$f":"CONCATENATE(\"  permit tcp \",$B$159,\" \",$B$160,\"  any eq https   log\")","v":"  permit tcp 108.13.229.0 0.0.0.255  any eq https   log"}]
["Sec Admin Source IP Reverse Mask","0.0.0.255",null,{"$f":"CONCATENATE(\"  permit tcp \",$B$159,\" \",$B$160,\"  any eq SSh   log\")","v":"  permit tcp 108.13.229.0 0.0.0.255  any eq SSh   log"}]
[null,null,null,{"$f":"IF($B$161=0,\"!\",(CONCATENATE(\"  permit tcp \",$B$161,\" \",$B$162,\"  any eq www   log\")))","v":"  permit tcp 208.77.233.0 0.0.0.255  any eq www   log"}]
[null,null,null,{"$f":"IF($B$161=0,\"!\",(CONCATENATE(\"  permit tcp \",$B$161,\" \",$B$162,\"  any eq snmp   log\")))","v":"  permit tcp 208.77.233.0 0.0.0.255  any eq snmp   log"}]
[null,null,null,{"$f":"IF($B$161=0,\"!\",(CONCATENATE(\"  permit tcp \",$B$161,\" \",$B$162,\"  any eq https   log\")))","v":"  permit tcp 208.77.233.0 0.0.0.255  any eq https   log"}]
[null,null,null,{"$f":"IF($B$161=0,\"!\",(CONCATENATE(\"  permit tcp \",$B$161,\" \",$B$162,\"  any eq ssh   log\")))","v":"  permit tcp 208.77.233.0 0.0.0.255  any eq ssh   log"}]
[null,null,null,"!"]
[null,null,null,"ip access-list extended web-acl-7"]
[null,null,null,"  remark Allow Internet Access"]
[null,null,null,"  permit ip any  any    "]
[null,null,null,"!"]
[null,null,null,"!"]
[null,null,null,"!"]
[null,null,null,"!"]
[null,null,null,"ip policy-class private"]
[null,null,null,"  allow list web-acl-1 self"]
[null,null,null,"  allow list web-acl-1 self"]
[null,null,null,{"$f":"CONCATENATE(\"  nat source list web-acl-7 interface \",$B$80,\" overload\")","v":"  nat source list web-acl-7 interface eth 0/1 overload"}]
[null,null,null,"!"]
[null,null,null,"ip policy-class Public"]
[null,null,null,"  allow list web-acl-2 self stateless"]
[null,null,null,"  allow list web-acl-3 self"]
[null,null,null,"!"]
[null,null,null,"!"]
[null,null,null,"!"]
[null,null,null,{"$f":"CONCATENATE(\"ip route 0.0.0.0 0.0.0.0 \",$B$83)","v":"ip route 0.0.0.0 0.0.0.0 208.77.233.145"}]
[null,null,null,"!"]
[null,null,null,"no tftp server"]
[null,null,null,"no tftp server overwrite"]
[null,null,null,"http server"]
[null,null,null,"http secure-server"]
[null,null,null,"no snmp agent"]
[null,null,null,"no ip ftp server"]
[null,null,null,"no ip scp server"]
[null,null,null,"no ip sntp server"]
[null,null,null,"!"]
[null,null,null,"!"]
[null,null,null,"!"]
[null,null,null,"!"]
[null,null,null,"!"]
[null,null,null,"!"]
[null,null,null,"!"]
[null,null,null,"!"]
[null,null,null,"sip"]
[null,null,null,"sip udp 5060"]
[null,null,null,"no sip tcp"]
[null,null,null,"!"]
[null,null,null,"!"]
[null,null,null,"!"]
[null,null,null,"voice feature-mode network"]
[null,null,null,"voice forward-mode network"]
[null,null,null,"!"]
[null,null,null,"!"]
[null,null,null,"!"]
[null,null,null,"!"]
[null,null,null,"!"]
[null,null,null,"!"]
[null,null,null,"!"]
[null,null,null,"!"]
[null,null,null,"voice dial-plan 1 local NXX-XXXX "]
[null,null,null,"voice dial-plan 2 long-distance 1-NXX-NXX-XXXX "]
[null,null,null,"voice dial-plan 3 international N11-$ "]
[null,null,null,"!"]
[null,null,null,"!"]
[null,null,null,"!"]
[null,null,null,"!"]
[null,null,null,"voice class-of-service GLOBAL"]
[null,null,null,"  default-level "]
[null,null,null,"  call-privilege all"]
[null,null,null,"!"]
[null,null,null,"voice codec-list GLOBAL"]
[null,null,null,"  codec g711ulaw"]
[null,null,null,"  codec g729"]
[null,null,null,"!"]
[null,null,null,"voice codec-list default"]
[null,null,null,"  default "]
[null,null,null,"  codec g711ulaw"]
[null,null,null,"  codec g711alaw"]
[null,null,null,"  codec g729"]
[null,null,null,"!"]
[null,null,null,"!"]
[null,null,null,"!"]
[null,null,null,"voice trunk-list sip"]
[null,null,null,"  trunk T01"]
[null,null,null,"!"]
[null,null,null,"voice trunk T01 type sip"]
[null,null,null,"  description \"FV 2.0 SIP\""]
[null,null,null,"  sip-server primary sipproxy.avpnet.us"]
[null,null,null,"  sip-server validation register"]
[null,null,null,"  registrar primary sipproxy.avpnet.us"]
[null,null,null,"  registrar threshold absolute 10"]
["non Fax Avalo Account",null,null,"  registrar expire-time 100"]
["Avalo SIP Realm for this device","get from Device SIP Tab",null,{"$f":"CONCATENATE(\"  domain \",$B$253)","v":"  domain get from Device SIP Tab"}]
["Total Voice paths",23,null,{"$f":"CONCATENATE(\"  max-number-calls \",$B$254)","v":"  max-number-calls 23"}]
["Device Username","get from Device SIP Tab",null,{"$f":"CONCATENATE(\"  register \",$B$255,\" auth-name \",$B$255,\" password \",$B$256)","v":"  register get from Device SIP Tab auth-name get from Device SIP Tab password get from Device SIP Tab"}]
["Device Password","get from Device SIP Tab",null,"  grammar request-uri host domain"]
[null,null,null,"  grammar from host domain"]
[null,null,null,"  grammar p-asserted-identity host domain"]
[null,null,null,"  grammar to host domain"]
[null,null,null,{"$f":"CONCATENATE(\"  authentication username \",$B$255,\" password \",$B$256)","v":"  authentication username get from Device SIP Tab password get from Device SIP Tab"}]
[null,null,null,"!"]
[null,null,null,"voice trunk T02 type isdn"]
[null,null,null,"  description \"PRI-Trunk-1\""]
[null,null,null,"  resource-selection circular descending"]
[null,null,null,"  connect isdn-group 1"]
[null,null,null,"  no early-cut-through"]
[null,null,null,"  rtp delay-mode adaptive"]
[null,null,null,"  codec-list default"]
[null,null,null,"!"]
[null,null,null,"voice trunk T03 type isdn"]
[null,null,null,"  description \"PRI-Trunk-2\""]
[null,null,null,"  resource-selection circular descending"]
[null,null,null,"  connect isdn-group 2"]
[null,null,null,"  no early-cut-through"]
[null,null,null,"  rtp delay-mode adaptive"]
[null,null,null,"  codec-list default"]
[null,null,null,"!"]
[null,null,null,"!"]
[null,null,null,"!"]
[null,null,null,"voice grouped-trunk SIP"]
[null,null,null,"  trunk T01"]
[null,null,null,"  accept $ cost 10"]
[null,null,null,"!"]
[null,null,null,"!"]
[null,null,null,"voice grouped-trunk PRI"]
["Paste DID's below here. If you have more than the space allowed, then paste them in batches. Reference the template information below in order to add contiguous groups of numbers",null,null,"  resource-selection circular"]
[null,null,null,"  trunk T02"]
[null,null,null,"  trunk T03"]
[null,null,null,{"$f":"IF(B289=0,\"!\",CONCATENATE(\"  accept \",B289,\" cost 0\"))","v":"!"}]
[null,null,null,{"$f":"IF(B290=0,\"!\",CONCATENATE(\"  accept \",B290,\" cost 0\"))","v":"!"}]
[null,null,null,{"$f":"IF(B291=0,\"!\",CONCATENATE(\"  accept \",B291,\" cost 0\"))","v":"!"}]
[null,null,null,"!"]
[null,null,null,"!"]
[null,null,null,"!"]
[null,null,null,"!"]
[null,null,null,"!"]
[null,null,null,"!"]
[null,null,null,"!"]
[null,null,null,"!"]
[null,null,null,"!"]
[null,null,null,"!"]
[null,null,null,"!"]
[null,null,null,"!"]
[null,null,null,"!"]
["Numbers assigned to PRI must not be assigned to Fax or Phone ports",null,null,"!"]
[null,null,null,"!"]
[null,null,null,"!"]
[null,null,null,"!"]
[null,null,null,"!"]
[null,null,null,"!"]
[null,null,null,"!"]
[null,null,null,"!"]
[null,null,null,"!"]
[null,null,null,"!"]
[null,null,null,"!"]
[null,null,null,"!"]
[null,null,null,"!"]
[null,null,null,"!"]
[null,null,null,"!"]
[null,null,null,"!"]
[null,null,null,"!"]
[null,null,null,"!"]
[null,null,null,"!"]
[null,null,null,"!"]
[null,null,null,"!"]
[null,null,null,"!"]
[null,null,null,"!"]
[null,null,null,"!"]
[null,null,null,"!"]
[null,null,null,"!"]
[null,null,null,"!"]
[null,null,null,"!"]
[null,null,null,"ip rtp dtmf-relay min-duration 60"]
[null,null,null,"!"]
[null,null,null,"!"]
[null,null,null,"ip rtp quality-monitoring"]
[null,null,null,"ip rtp quality-monitoring udp"]
[null,null,null,"ip rtp quality-monitoring sip"]
[null,null,null,"no ip rtp quality-monitoring threshold lq-mos info"]
[null,null,null,"no ip rtp quality-monitoring threshold lq-mos notice"]
[null,null,null,"no ip rtp quality-monitoring threshold lq-mos warning"]
[null,null,null,"no ip rtp quality-monitoring threshold lq-mos error"]
[null,null,null,"no ip rtp quality-monitoring threshold pq-mos info"]
[null,null,null,"no ip rtp quality-monitoring threshold pq-mos notice"]
[null,null,null,"no ip rtp quality-monitoring threshold pq-mos warning"]
[null,null,null,"no ip rtp quality-monitoring threshold pq-mos error"]
[null,null,null,"no ip rtp quality-monitoring round-trip-delay"]
[null,null,null,"!"]
[null,null,null,"line con 0"]
[null,null,null,"  no login"]
[null,null,null,"!"]
[null,null,null,"line telnet 0 4"]
[null,null,null,"  no login"]
[null,null,null,"  shutdown"]
[null,null,null,"line ssh 0 4"]
[null,null,null,"  login local-userlist"]
[null,null,null,"  no shutdown"]
[null,null,null,"!"]
[null,null,null,"!"]
[null,null,null,"!"]
[null,null,null,"!"]
[null,null,null,"!"]
[null,null,null,"end"]

{"sheet":"Phone","index":1,"n_rows":388,"n_cols":7,"rows_kept":388,"cut":false,"hidden":false,"merged":[[27,4,30,5]]}
["How to use this sheet"]
["Use this sheet to map Phone numbers to FXS Ports - This is not for Fax ports",null,"Port","Primary Phone Number","Temp Number (opt)","Ext# (auto)","Number of Rings"]
["Enter the necessary phone numbers on the appropriate ports",null,"FXS 0/1",5555555555,null,{"$f":"CONCATENATE(RIGHT(D3,4))","v":"5555"},5]
["If a temp number is being used pre-port, enter in Temp Number Column",null,"FXS 0/2",null,null,{"$f":"CONCATENATE(RIGHT(D4,4))","v":""},5]
["Extention numbers will be pre-populated from Phone Number",null,"FXS 0/3",null,null,{"$f":"CONCATENATE(RIGHT(D5,4))","v":""},5]
["Adjust Number of Rings if necessary - Default is 5",null,"FXS 0/4",null,null,"",5]
["Click \"Refresh Table\" button to see complete script",null,"FXS 0/5",null,null,"",5]
["Copy Resulting Script and paste into the Adtran Config",null,"FXS 0/6",null,null,"",5]
[null,null,"FXS 0/7",null,null,"",5]
[null,null,"FXS 0/8",null,null,"",5]
["Pre-Requisites",null,"FXS 0/9",null,null,"",5]
["You must have pasted relevant config into Adtran from \"SIP to PRI\" Tab before this will work",null,"FXS 0/10",null,null,"",5]
[null,null,"FXS 0/11",null,null,"",5]
["*Numbers assigned to Phone ports must not be assigned to PRI or FAX ports",null,"FXS 0/12",null,null,"",5]
[null,null,"FXS 0/13",null,null,"",5]
[null,null,"FXS 0/14",null,null,"",5]
[null,null,"FXS 0/15",null,null,"",5]
[null,null,"FXS 0/16",null,null,"",5]
[null,null,"FXS 0/17",null,null,"",5]
[null,null,"FXS 0/18",null,null,"",5]
[null,null,"FXS 0/19",null,null,"",5]
[null,null,"FXS 0/20",null,null,"",5]
[null,null,"FXS 0/21",null,null,"",5]
[null,null,"FXS 0/22",null,null,"",5]
[null,null,"FXS 0/23",null,null,"",5]
[null,null,"FXS 0/24",null,null,"",5]
[]
[null,null,null,"Column1","Click \"Refresh Table\" after adding/removing numbers above"]
[null,null,null,{"$f":"IF($D3=0,\"\",(CONCATENATE(\"voice user \",$F3)))","v":"voice user 5555"}]
[null,null,null,{"$f":"IF($D3=0,\"\",(CONCATENATE(\"  connect \",$C3)))","v":"  connect FXS 0/1"}]
[null,null,null,{"$f":"IF($D3=0,\"\",(CONCATENATE(\"  cos GLOBAL\")))","v":"  cos GLOBAL"}]
[null,null,null,{"$f":"IF($D3=0,\"\",(CONCATENATE(\"  first name \",$D3)))","v":"  first name 5555555555"}]
[null,null,null,{"$f":"IF($D3=0,\"\",(CONCATENATE(\"  last-name Phone\")))","v":"  last-name Phone"}]
[null,null,null,{"$f":"IF($D3=0,\"\",(CONCATENATE(\"  password \",$F3)))","v":"  password 5555"}]
[null,null,null,{"$f":"IF($D3=0,\"\",(CONCATENATE(\"  caller-id-override external-number \",$D3)))","v":"  caller-id-override external-number 5555555555"}]
[null,null,null,{"$f":"IF($D3=0,\"\",(CONCATENATE(\"  did \",$D3)))","v":"  did 5555555555"}]
[null,null,null,{"$f":"IF($D3=0,\"\",(CONCATENATE(\"  did \",$E3)))","v":"  did "}]
[null,null,null,{"$f":"IF($D3=0,\"\",(CONCATENATE(\"  num-rings \",$G3)))","v":"  num-rings 5"}]
[null,null,null,"!"]
[null,null,null,"!"]
[null,null,null,"!"]
[null,null,null,"!"]
[null,null,null,{"$f":"IF($D3=0,\"\",(CONCATENATE(\"!\")))","v":"!"}]
[null,null,null,{"$f":"IF($D4=0,\"\",(CONCATENATE(\"voice user \",$F4)))","v":""}]
[null,null,null,{"$f":"IF($D4=0,\"\",(CONCATENATE(\"  connect \",$C4)))","v":""}]
[null,null,null,{"$f":"IF($D4=0,\"\",(CONCATENATE(\"  cos GLOBAL\")))","v":""}]
[null,null,null,{"$f":"IF($D4=0,\"\",(CONCATENATE(\"  first name \",$D4)))","v":""}]
[null,null,null,{"$f":"IF($D4=0,\"\",(CONCATENATE(\"  last-name Phone\")))","v":""}]
[null,null,null,{"$f":"IF($D4=0,\"\",(CONCATENATE(\"  password \",$F4)))","v":""}]
[null,null,null,{"$f":"IF($D4=0,\"\",(CONCATENATE(\"  caller-id-override external-number \",$D4)))","v":""}]
[null,null,null,{"$f":"IF($D4=0,\"\",(CONCATENATE(\"  did \",$D4)))","v":""}]
[null,null,null,{"$f":"IF($D4=0,\"\",(CONCATENATE(\"  did \",$E4)))","v":""}]
[null,null,null,{"$f":"IF($D4=0,\"\",(CONCATENATE(\"  num-rings \",$G4)))","v":""}]
[null,null,null,"!"]
[null,null,null,"!"]
[null,null,null,"!"]
[null,null,null,"!"]
[null,null,null,{"$f":"IF($D4=0,\"\",(CONCATENATE(\"!\")))","v":""}]
[null,null,null,{"$f":"IF($D5=0,\"\",(CONCATENATE(\"voice user \",$F5)))","v":""}]
[null,null,null,{"$f":"IF($D5=0,\"\",(CONCATENATE(\"  connect \",$C5)))","v":""}]
[null,null,null,{"$f":"IF($D5=0,\"\",(CONCATENATE(\"  cos GLOBAL\")))","v":""}]
[null,null,null,{"$f":"IF($D5=0,\"\",(CONCATENATE(\"  first name \",$D5)))","v":""}]
[null,null,null,{"$f":"IF($D5=0,\"\",(CONCATENATE(\"  last-name Phone\")))","v":""}]
[null,null,null,{"$f":"IF($D5=0,\"\",(CONCATENATE(\"  password \",$F5)))","v":""}]
[null,null,null,{"$f":"IF($D5=0,\"\",(CONCATENATE(\"  caller-id-override external-number \",$D5)))","v":""}]
[null,null,null,{"$f":"IF($D5=0,\"\",(CONCATENATE(\"  did \",$D5)))","v":""}]
[null,null,null,{"$f":"IF($D5=0,\"\",(CONCATENATE(\"  did \",$E5)))","v":""}]
[null,null,null,{"$f":"IF($D5=0,\"\",(CONCATENATE(\"  num-rings \",$G5)))","v":""}]
[null,null,null,"!"]
[null,null,null,"!"]
[null,null,null,"!"]
[null,null,null,"!"]
[null,null,null,{"$f":"IF($D5=0,\"\",(CONCATENATE(\"!\")))","v":""}]
[null,null,null,{"$f":"IF($D6=0,\"\",(CONCATENATE(\"voice user \",$F6)))","v":""}]
[null,null,null,{"$f":"IF($D6=0,\"\",(CONCATENATE(\"  connect \",$C6)))","v":""}]
[null,null,null,{"$f":"IF($D6=0,\"\",(CONCATENATE(\"  cos GLOBAL\")))","v":""}]
[null,null,null,{"$f":"IF($D6=0,\"\",(CONCATENATE(\"  first name \",$D6)))","v":""}]
[null,null,null,{"$f":"IF($D6=0,\"\",(CONCATENATE(\"  last-name Phone\")))","v":""}]
[null,null,null,{"$f":"IF($D6=0,\"\",(CONCATENATE(\"  password \",$F6)))","v":""}]
[null,null,null,{"$f":"IF($D6=0,\"\",(CONCATENATE(\"  caller-id-override external-number \",$D6)))","v":""}]
[null,null,null,{"$f":"IF($D6=0,\"\",(CONCATENATE(\"  did \",$D6)))","v":""}]
[null,null,null,{"$f":"IF($D6=0,\"\",(CONCATENATE(\"  did \",$E6)))","v":""}]
[null,null,null,{"$f":"IF($D6=0,\"\",(CONCATENATE(\"  num-rings \",$G6)))","v":""}]
[null,null,null,"!"]
[null,null,null,"!"]
[null,null,null,"!"]
[null,null,null,"!"]
[null,null,null,{"$f":"IF($D6=0,\"\",(CONCATENATE(\"!\")))","v":""}]
[null,null,null,{"$f":"IF($D7=0,\"\",(CONCATENATE(\"voice user \",$F7)))","v":""}]
[null,null,null,{"$f":"IF($D7=0,\"\",(CONCATENATE(\"  connect \",$C7)))","v":""}]
[null,null,null,{"$f":"IF($D7=0,\"\",(CONCATENATE(\"  cos GLOBAL\")))","v":""}]
[null,null,null,{"$f":"IF($D7=0,\"\",(CONCATENATE(\"  first name \",$D7)))","v":""}]
[null,null,null,{"$f":"IF($D7=0,\"\",(CONCATENATE(\"  last-name Phone\")))","v":""}]
[null,null,null,{"$f":"IF($D7=0,\"\",(CONCATENATE(\"  password \",$F7)))","v":""}]
[null,null,null,{"$f":"IF($D7=0,\"\",(CONCATENATE(\"  caller-id-override external-number \",$D7)))","v":""}]
[null,null,null,{"$f":"IF($D7=0,\"\",(CONCATENATE(\"  did \",$D7)))","v":""}]
[null,null,null,{"$f":"IF($D7=0,\"\",(CONCATENATE(\"  did \",$E7)))","v":""}]
[null,null,null,{"$f":"IF($D7=0,\"\",(CONCATENATE(\"  num-rings \",$G7)))","v":""}]
[null,null,null,"!"]
[null,null,null,"!"]
[null,null,null,"!"]
[null,null,null,"!"]
[null,null,null,{"$f":"IF($D7=0,\"\",(CONCATENATE(\"!\")))","v":""}]
[null,null,null,{"$f":"IF($D8=0,\"\",(CONCATENATE(\"voice user \",$F8)))","v":""}]
[null,null,null,{"$f":"IF($D8=0,\"\",(CONCATENATE(\"  connect \",$C8)))","v":""}]
[null,null,null,{"$f":"IF($D8=0,\"\",(CONCATENATE(\"  cos GLOBAL\")))","v":""}]
[null,null,null,{"$f":"IF($D8=0,\"\",(CONCATENATE(\"  first name \",$D8)))","v":""}]
[null,null,null,{"$f":"IF($D8=0,\"\",(CONCATENATE(\"  last-name Phone\")))","v":""}]
[null,null,null,{"$f":"IF($D8=0,\"\",(CONCATENATE(\"  password \",$F8)))","v":""}]
[null,null,null,{"$f":"IF($D8=0,\"\",(CONCATENATE(\"  caller-id-override external-number \",$D8)))","v":""}]
[null,null,null,{"$f":"IF($D8=0,\"\",(CONCATENATE(\"  did \",$D8)))","v":""}]
[null,null,null,{"$f":"IF($D8=0,\"\",(CONCATENATE(\"  did \",$E8)))","v":""}]
[null,null,null,{"$f":"IF($D8=0,\"\",(CONCATENATE(\"  num-rings \",$G8)))","v":""}]
[null,null,null,"!"]
[null,null,null,"!"]
[null,null,null,"!"]
[null,null,null,"!"]
[null,null,null,{"$f":"IF($D8=0,\"\",(CONCATENATE(\"!\")))","v":""}]
[null,null,null,{"$f":"IF($D9=0,\"\",(CONCATENATE(\"voice user \",$F9)))","v":""}]
[null,null,null,{"$f":"IF($D9=0,\"\",(CONCATENATE(\"  connect \",$C9)))","v":""}]
[null,null,null,{"$f":"IF($D9=0,\"\",(CONCATENATE(\"  cos GLOBAL\")))","v":""}]
[null,null,null,{"$f":"IF($D9=0,\"\",(CONCATENATE(\"  first name \",$D9)))","v":""}]
[null,null,null,{"$f":"IF($D9=0,\"\",(CONCATENATE(\"  last-name Phone\")))","v":""}]
[null,null,null,{"$f":"IF($D9=0,\"\",(CONCATENATE(\"  password \",$F9)))","v":""}]
[null,null,null,{"$f":"IF($D9=0,\"\",(CONCATENATE(\"  caller-id-override external-number \",$D9)))","v":""}]
[null,null,null,{"$f":"IF($D9=0,\"\",(CONCATENATE(\"  did \",$D9)))","v":""}]
[null,null,null,{"$f":"IF($D9=0,\"\",(CONCATENATE(\"  did \",$E9)))","v":""}]
[null,null,null,{"$f":"IF($D9=0,\"\",(CONCATENATE(\"  num-rings \",$G9)))","v":""}]
[null,null,null,"!"]
[null,null,null,"!"]
[null,null,null,"!"]
[null,null,null,"!"]
[null,null,null,{"$f":"IF($D9=0,\"\",(CONCATENATE(\"!\")))","v":""}]
[null,null,null,{"$f":"IF($D10=0,\"\",(CONCATENATE(\"voice user \",$F10)))","v":""}]
[null,null,null,{"$f":"IF($D10=0,\"\",(CONCATENATE(\"  connect \",$C10)))","v":""}]
[null,null,null,{"$f":"IF($D10=0,\"\",(CONCATENATE(\"  cos GLOBAL\")))","v":""}]
[null,null,null,{"$f":"IF($D10=0,\"\",(CONCATENATE(\"  first name \",$D10)))","v":""}]
[null,null,null,{"$f":"IF($D10=0,\"\",(CONCATENATE(\"  last-name Phone\")))","v":""}]
[null,null,null,{"$f":"IF($D10=0,\"\",(CONCATENATE(\"  password \",$F10)))","v":""}]
[null,null,null,{"$f":"IF($D10=0,\"\",(CONCATENATE(\"  caller-id-override external-number \",$D10)))","v":""}]
[null,null,null,{"$f":"IF($D10=0,\"\",(CONCATENATE(\"  did \",$D10)))","v":""}]
[null,null,null,{"$f":"IF($D10=0,\"\",(CONCATENATE(\"  did \",$E10)))","v":""}]
[null,null,null,{"$f":"IF($D10=0,\"\",(CONCATENATE(\"  num-rings \",$G10)))","v":""}]
[null,null,null,"!"]
[null,null,null,"!"]
[null,null,null,"!"]
[null,null,null,"!"]
[null,null,null,{"$f":"IF($D10=0,\"\",(CONCATENATE(\"!\")))","v":""}]
[null,null,null,{"$f":"IF($D11=0,\"\",(CONCATENATE(\"voice user \",$F11)))","v":""}]
[null,null,null,{"$f":"IF($D11=0,\"\",(CONCATENATE(\"  connect \",$C11)))","v":""}]
[null,null,null,{"$f":"IF($D11=0,\"\",(CONCATENATE(\"  cos GLOBAL\")))","v":""}]
[null,null,null,{"$f":"IF($D11=0,\"\",(CONCATENATE(\"  first name \",$D11)))","v":""}]
[null,null,null,{"$f":"IF($D11=0,\"\",(CONCATENATE(\"  last-name Phone\")))","v":""}]
[null,null,null,{"$f":"IF($D11=0,\"\",(CONCATENATE(\"  password \",$F11)))","v":""}]
[null,null,null,{"$f":"IF($D11=0,\"\",(CONCATENATE(\"  caller-id-override external-number \",$D11)))","v":""}]
[null,null,null,{"$f":"IF($D11=0,\"\",(CONCATENATE(\"  did \",$D11)))","v":""}]
[null,null,null,{"$f":"IF($D11=0,\"\",(CONCATENATE(\"  did \",$E11)))","v":""}]
[null,null,null,{"$f":"IF($D11=0,\"\",(CONCATENATE(\"  num-rings \",$G11)))","v":""}]
[null,null,null,"!"]
[null,null,null,"!"]
[null,null,null,"!"]
[null,null,null,"!"]
[null,null,null,{"$f":"IF($D11=0,\"\",(CONCATENATE(\"!\")))","v":""}]
[null,null,null,{"$f":"IF($D12=0,\"\",(CONCATENATE(\"voice user \",$F12)))","v":""}]
[null,null,null,{"$f":"IF($D12=0,\"\",(CONCATENATE(\"  connect \",$C12)))","v":""}]
[null,null,null,{"$f":"IF($D12=0,\"\",(CONCATENATE(\"  cos GLOBAL\")))","v":""}]
[null,null,null,{"$f":"IF($D12=0,\"\",(CONCATENATE(\"  first name \",$D12)))","v":""}]
[null,null,null,{"$f":"IF($D12=0,\"\",(CONCATENATE(\"  last-name Phone\")))","v":""}]
[null,null,null,{"$f":"IF($D12=0,\"\",(CONCATENATE(\"  password \",$F12)))","v":""}]
[null,null,null,{"$f":"IF($D12=0,\"\",(CONCATENATE(\"  caller-id-override external-number \",$D12)))","v":""}]
[null,null,null,{"$f":"IF($D12=0,\"\",(CONCATENATE(\"  did \",$D12)))","v":""}]
[null,null,null,{"$f":"IF($D12=0,\"\",(CONCATENATE(\"  did \",$E12)))","v":""}]
[null,null,null,{"$f":"IF($D12=0,\"\",(CONCATENATE(\"  num-rings \",$G12)))","v":""}]
[null,null,null,"!"]
[null,null,null,"!"]
[null,null,null,"!"]
[null,null,null,"!"]
[null,null,null,{"$f":"IF($D12=0,\"\",(CONCATENATE(\"!\")))","v":""}]
[null,null,null,{"$f":"IF($D13=0,\"\",(CONCATENATE(\"voice user \",$F13)))","v":""}]
[null,null,null,{"$f":"IF($D13=0,\"\",(CONCATENATE(\"  connect \",$C13)))","v":""}]
[null,null,null,{"$f":"IF($D13=0,\"\",(CONCATENATE(\"  cos GLOBAL\")))","v":""}]
[null,null,null,{"$f":"IF($D13=0,\"\",(CONCATENATE(\"  first name \",$D13)))","v":""}]
[null,null,null,{"$f":"IF($D13=0,\"\",(CONCATENATE(\"  last-name Phone\")))","v":""}]
[null,null,null,{"$f":"IF($D13=0,\"\",(CONCATENATE(\"  password \",$F13)))","v":""}]
[null,null,null,{"$f":"IF($D13=0,\"\",(CONCATENATE(\"  caller-id-override external-number \",$D13)))","v":""}]
[null,null,null,{"$f":"IF($D13=0,\"\",(CONCATENATE(\"  did \",$D13)))","v":""}]
[null,null,null,{"$f":"IF($D13=0,\"\",(CONCATENATE(\"  did \",$E13)))","v":""}]
[null,null,null,{"$f":"IF($D13=0,\"\",(CONCATENATE(\"  num-rings \",$G13)))","v":""}]
[null,null,null,"!"]
[null,null,null,"!"]
[null,null,null,"!"]
[null,null,null,"!"]
[null,null,null,{"$f":"IF($D13=0,\"\",(CONCATENATE(\"!\")))","v":""}]
[null,null,null,{"$f":"IF($D14=0,\"\",(CONCATENATE(\"voice user \",$F14)))","v":""}]
[null,null,null,{"$f":"IF($D14=0,\"\",(CONCATENATE(\"  connect \",$C14)))","v":""}]
[null,null,null,{"$f":"IF($D14=0,\"\",(CONCATENATE(\"  cos GLOBAL\")))","v":""}]
[null,null,null,{"$f":"IF($D14=0,\"\",(CONCATENATE(\"  first name \",$D14)))","v":""}]
[null,null,null,{"$f":"IF($D14=0,\"\",(CONCATENATE(\"  last-name Phone\")))","v":""}]
[null,null,null,{"$f":"IF($D14=0,\"\",(CONCATENATE(\"  password \",$F14)))","v":""}]
[null,null,null,{"$f":"IF($D14=0,\"\",(CONCATENATE(\"  caller-id-override external-number \",$D14)))","v":""}]
[null,null,null,{"$f":"IF($D14=0,\"\",(CONCATENATE(\"  did \",$D14)))","v":""}]
[null,null,null,{"$f":"IF($D14=0,\"\",(CONCATENATE(\"  did \",$E14)))","v":""}]
[null,null,null,{"$f":"IF($D14=0,\"\",(CONCATENATE(\"  num-rings \",$G14)))","v":""}]
[null,null,null,"!"]
[null,null,null,"!"]
[null,null,null,"!"]
[null,null,null,"!"]
[null,null,null,{"$f":"IF($D14=0,\"\",(CONCATENATE(\"!\")))","v":""}]
[null,null,null,{"$f":"IF($D15=0,\"\",(CONCATENATE(\"voice user \",$F15)))","v":""}]
[null,null,null,{"$f":"IF($D15=0,\"\",(CONCATENATE(\"  connect \",$C15)))","v":""}]
[null,null,null,{"$f":"IF($D15=0,\"\",(CONCATENATE(\"  cos GLOBAL\")))","v":""}]
[null,null,null,{"$f":"IF($D15=0,\"\",(CONCATENATE(\"  first name \",$D15)))","v":""}]
[null,null,null,{"$f":"IF($D15=0,\"\",(CONCATENATE(\"  last-name Phone\")))","v":""}]
[null,null,null,{"$f":"IF($D15=0,\"\",(CONCATENATE(\"  password \",$F15)))","v":""}]
[null,null,null,{"$f":"IF($D15=0,\"\",(CONCATENATE(\"  caller-id-override external-number \",$D15)))","v":""}]
[null,null,null,{"$f":"IF($D15=0,\"\",(CONCATENATE(\"  did \",$D15)))","v":""}]
[null,null,null,{"$f":"IF($D15=0,\"\",(CONCATENATE(\"  did \",$E15)))","v":""}]
[null,null,null,{"$f":"IF($D15=0,\"\",(CONCATENATE(\"  num-rings \",$G15)))","v":""}]
[null,null,null,"!"]
[null,null,null,"!"]
[null,null,null,"!"]
[null,null,null,"!"]
[null,null,null,{"$f":"IF($D15=0,\"\",(CONCATENATE(\"!\")))","v":""}]
[null,null,null,{"$f":"IF($D16=0,\"\",(CONCATENATE(\"voice user \",$F16)))","v":""}]
[null,null,null,{"$f":"IF($D16=0,\"\",(CONCATENATE(\"  connect \",$C16)))","v":""}]
[null,null,null,{"$f":"IF($D16=0,\"\",(CONCATENATE(\"  cos GLOBAL\")))","v":""}]
[null,null,null,{"$f":"IF($D16=0,\"\",(CONCATENATE(\"  first name \",$D16)))","v":""}]
[null,null,null,{"$f":"IF($D16=0,\"\",(CONCATENATE(\"  last-name Phone\")))","v":""}]
[null,null,null,{"$f":"IF($D16=0,\"\",(CONCATENATE(\"  password \",$F16)))","v":""}]
[null,null,null,{"$f":"IF($D16=0,\"\",(CONCATENATE(\"  caller-id-override external-number \",$D16)))","v":""}]
[null,null,null,{"$f":"IF($D16=0,\"\",(CONCATENATE(\"  did \",$D16)))","v":""}]
[null,null,null,{"$f":"IF($D16=0,\"\",(CONCATENATE(\"  did \",$E16)))","v":""}]
[null,null,null,{"$f":"IF($D16=0,\"\",(CONCATENATE(\"  num-rings \",$G16)))","v":""}]
[null,null,null,"!"]
[null,null,null,"!"]
[null,null,null,"!"]
[null,null,null,"!"]
[null,null,null,{"$f":"IF($D16=0,\"\",(CONCATENATE(\"!\")))","v":""}]
[null,null,null,{"$f":"IF($D17=0,\"\",(CONCATENATE(\"voice user \",$F17)))","v":""}]
[null,null,null,{"$f":"IF($D17=0,\"\",(CONCATENATE(\"  connect \",$C17)))","v":""}]
[null,null,null,{"$f":"IF($D17=0,\"\",(CONCATENATE(\"  cos GLOBAL\")))","v":""}]
[null,null,null,{"$f":"IF($D17=0,\"\",(CONCATENATE(\"  first name \",$D17)))","v":""}]
[null,null,null,{"$f":"IF($D17=0,\"\",(CONCATENATE(\"  last-name Phone\")))","v":""}]
[null,null,null,{"$f":"IF($D17=0,\"\",(CONCATENATE(\"  password \",$F17)))","v":""}]
[null,null,null,{"$f":"IF($D17=0,\"\",(CONCATENATE(\"  caller-id-override external-number \",$D17)))","v":""}]
[null,null,null,{"$f":"IF($D17=0,\"\",(CONCATENATE(\"  did \",$D17)))","v":""}]
[null,null,null,{"$f":"IF($D17=0,\"\",(CONCATENATE(\"  did \",$E17)))","v":""}]
[null,null,null,{"$f":"IF($D17=0,\"\",(CONCATENATE(\"  num-rings \",$G17)))","v":""}]
[null,null,null,"!"]
[null,null,null,"!"]
[null,null,null,"!"]
[null,null,null,"!"]
[null,null,null,{"$f":"IF($D17=0,\"\",(CONCATENATE(\"!\")))","v":""}]
[null,null,null,{"$f":"IF($D18=0,\"\",(CONCATENATE(\"voice user \",$F18)))","v":""}]
[null,null,null,{"$f":"IF($D18=0,\"\",(CONCATENATE(\"  connect \",$C18)))","v":""}]
[null,null,null,{"$f":"IF($D18=0,\"\",(CONCATENATE(\"  cos GLOBAL\")))","v":""}]
[null,null,null,{"$f":"IF($D18=0,\"\",(CONCATENATE(\"  first name \",$D18)))","v":""}]
[null,null,null,{"$f":"IF($D18=0,\"\",(CONCATENATE(\"  last-name Phone\")))","v":""}]
[null,null,null,{"$f":"IF($D18=0,\"\",(CONCATENATE(\"  password \",$F18)))","v":""}]
[null,null,null,{"$f":"IF($D18=0,\"\",(CONCATENATE(\"  caller-id-override external-number \",$D18)))","v":""}]
[null,null,null,{"$f":"IF($D18=0,\"\",(CONCATENATE(\"  did \",$D18)))","v":""}]
[null,null,null,{"$f":"IF($D18=0,\"\",(CONCATENATE(\"  did \",$E18)))","v":""}]
[null,null,null,{"$f":"IF($D18=0,\"\",(CONCATENATE(\"  num-rings \",$G18)))","v":""}]
[null,null,null,"!"]
[null,null,null,"!"]
[null,null,null,"!"]
[null,null,null,"!"]
[null,null,null,{"$f":"IF($D18=0,\"\",(CONCATENATE(\"!\")))","v":""}]
[null,null,null,{"$f":"IF($D19=0,\"\",(CONCATENATE(\"voice user \",$F19)))","v":""}]
[null,null,null,{"$f":"IF($D19=0,\"\",(CONCATENATE(\"  connect \",$C19)))","v":""}]
[null,null,null,{"$f":"IF($D19=0,\"\",(CONCATENATE(\"  cos GLOBAL\")))","v":""}]
[null,null,null,{"$f":"IF($D19=0,\"\",(CONCATENATE(\"  first name \",$D19)))","v":""}]
[null,null,null,{"$f":"IF($D19=0,\"\",(CONCATENATE(\"  last-name Phone\")))","v":""}]
[null,null,null,{"$f":"IF($D19=0,\"\",(CONCATENATE(\"  password \",$F19)))","v":""}]
[null,null,null,{"$f":"IF($D19=0,\"\",(CONCATENATE(\"  caller-id-override external-number \",$D19)))","v":""}]
[null,null,null,{"$f":"IF($D19=0,\"\",(CONCATENATE(\"  did \",$D19)))","v":""}]
[null,null,null,{"$f":"IF($D19=0,\"\",(CONCATENATE(\"  did \",$E19)))","v":""}]
[null,null,null,{"$f":"IF($D19=0,\"\",(CONCATENATE(\"  num-rings \",$G19)))","v":""}]
[null,null,null,"!"]
[null,null,null,"!"]
[null,null,null,"!"]
[null,null,null,"!"]
[null,null,null,{"$f":"IF($D19=0,\"\",(CONCATENATE(\"!\")))","v":""}]
[null,null,null,{"$f":"IF($D20=0,\"\",(CONCATENATE(\"voice user \",$F20)))","v":""}]
[null,null,null,{"$f":"IF($D20=0,\"\",(CONCATENATE(\"  connect \",$C20)))","v":""}]
[null,null,null,{"$f":"IF($D20=0,\"\",(CONCATENATE(\"  cos GLOBAL\")))","v":""}]
[null,null,null,{"$f":"IF($D20=0,\"\",(CONCATENATE(\"  first name \",$D20)))","v":""}]
[null,null,null,{"$f":"IF($D20=0,\"\",(CONCATENATE(\"  last-name Phone\")))","v":""}]
[null,null,null,{"$f":"IF($D20=0,\"\",(CONCATENATE(\"  password \",$F20)))","v":""}]
[null,null,null,{"$f":"IF($D20=0,\"\",(CONCATENATE(\"  caller-id-override external-number \",$D20)))","v":""}]
[null,null,null,{"$f":"IF($D20=0,\"\",(CONCATENATE(\"  did \",$D20)))","v":""}]
[null,null,null,{"$f":"IF($D20=0,\"\",(CONCATENATE(\"  did \",$E20)))","v":""}]
[null,null,null,{"$f":"IF($D20=0,\"\",(CONCATENATE(\"  num-rings \",$G20)))","v":""}]
[null,null,null,"!"]
[null,null,null,"!"]
[null,null,null,"!"]
[null,null,null,"!"]
[null,null,null,{"$f":"IF($D20=0,\"\",(CONCATENATE(\"!\")))","v":""}]
[null,null,null,{"$f":"IF($D21=0,\"\",(CONCATENATE(\"voice user \",$F21)))","v":""}]
[null,null,null,{"$f":"IF($D21=0,\"\",(CONCATENATE(\"  connect \",$C21)))","v":""}]
[null,null,null,{"$f":"IF($D21=0,\"\",(CONCATENATE(\"  cos GLOBAL\")))","v":""}]
[null,null,null,{"$f":"IF($D21=0,\"\",(CONCATENATE(\"  first name \",$D21)))","v":""}]
[null,null,null,{"$f":"IF($D21=0,\"\",(CONCATENATE(\"  last-name Phone\")))","v":""}]
[null,null,null,{"$f":"IF($D21=0,\"\",(CONCATENATE(\"  password \",$F21)))","v":""}]
[null,null,null,{"$f":"IF($D21=0,\"\",(CONCATENATE(\"  caller-id-override external-number \",$D21)))","v":""}]
[null,null,null,{"$f":"IF($D21=0,\"\",(CONCATENATE(\"  did \",$D21)))","v":""}]
[null,null,null,{"$f":"IF($D21=0,\"\",(CONCATENATE(\"  did \",$E21)))","v":""}]
[null,null,null,{"$f":"IF($D21=0,\"\",(CONCATENATE(\"  num-rings \",$G21)))","v":""}]
[null,null,null,"!"]
[null,null,null,"!"]
[null,null,null,"!"]
[null,null,null,"!"]
[null,null,null,{"$f":"IF($D21=0,\"\",(CONCATENATE(\"!\")))","v":""}]
[null,null,null,{"$f":"IF($D22=0,\"\",(CONCATENATE(\"voice user \",$F22)))","v":""}]
[null,null,null,{"$f":"IF($D22=0,\"\",(CONCATENATE(\"  connect \",$C22)))","v":""}]
[null,null,null,{"$f":"IF($D22=0,\"\",(CONCATENATE(\"  cos GLOBAL\")))","v":""}]
[null,null,null,{"$f":"IF($D22=0,\"\",(CONCATENATE(\"  first name \",$D22)))","v":""}]
[null,null,null,{"$f":"IF($D22=0,\"\",(CONCATENATE(\"  last-name Phone\")))","v":""}]
[null,null,null,{"$f":"IF($D22=0,\"\",(CONCATENATE(\"  password \",$F22)))","v":""}]
[null,null,null,{"$f":"IF($D22=0,\"\",(CONCATENATE(\"  caller-id-override external-number \",$D22)))","v":""}]
[null,null,null,{"$f":"IF($D22=0,\"\",(CONCATENATE(\"  did \",$D22)))","v":""}]
[null,null,null,{"$f":"IF($D22=0,\"\",(CONCATENATE(\"  did \",$E22)))","v":""}]
[null,null,null,{"$f":"IF($D22=0,\"\",(CONCATENATE(\"  num-rings \",$G22)))","v":""}]
[null,null,null,"!"]
[null,null,null,"!"]
[null,null,null,"!"]
[null,null,null,"!"]
[null,null,null,{"$f":"IF($D22=0,\"\",(CONCATENATE(\"!\")))","v":""}]
[null,null,null,{"$f":"IF($D23=0,\"\",(CONCATENATE(\"voice user \",$F23)))","v":""}]
[null,null,null,{"$f":"IF($D23=0,\"\",(CONCATENATE(\"  connect \",$C23)))","v":""}]
[null,null,null,{"$f":"IF($D23=0,\"\",(CONCATENATE(\"  cos GLOBAL\")))","v":""}]
[null,null,null,{"$f":"IF($D23=0,\"\",(CONCATENATE(\"  first name \",$D23)))","v":""}]
[null,null,null,{"$f":"IF($D23=0,\"\",(CONCATENATE(\"  last-name Phone\")))","v":""}]
[null,null,null,{"$f":"IF($D23=0,\"\",(CONCATENATE(\"  password \",$F23)))","v":""}]
[null,null,null,{"$f":"IF($D23=0,\"\",(CONCATENATE(\"  caller-id-override external-number \",$D23)))","v":""}]
[null,null,null,{"$f":"IF($D23=0,\"\",(CONCATENATE(\"  did \",$D23)))","v":""}]
[null,null,null,{"$f":"IF($D23=0,\"\",(CONCATENATE(\"  did \",$E23)))","v":""}]
[null,null,null,{"$f":"IF($D23=0,\"\",(CONCATENATE(\"  num-rings \",$G23)))","v":""}]
[null,null,null,"!"]
[null,null,null,"!"]
[null,null,null,"!"]
[null,null,null,"!"]
[null,null,null,{"$f":"IF($D23=0,\"\",(CONCATENATE(\"!\")))","v":""}]
[null,null,null,{"$f":"IF($D24=0,\"\",(CONCATENATE(\"voice user \",$F24)))","v":""}]
[null,null,null,{"$f":"IF($D24=0,\"\",(CONCATENATE(\"  connect \",$C24)))","v":""}]
[null,null,null,{"$f":"IF($D24=0,\"\",(CONCATENATE(\"  cos GLOBAL\")))","v":""}]
[null,null,null,{"$f":"IF($D24=0,\"\",(CONCATENATE(\"  first name \",$D24)))","v":""}]
[null,null,null,{"$f":"IF($D24=0,\"\",(CONCATENATE(\"  last-name Phone\")))","v":""}]
[null,null,null,{"$f":"IF($D24=0,\"\",(CONCATENATE(\"  password \",$F24)))","v":""}]
[null,null,null,{"$f":"IF($D24=0,\"\",(CONCATENATE(\"  caller-id-override external-number \",$D24)))","v":""}]
[null,null,null,{"$f":"IF($D24=0,\"\",(CONCATENATE(\"  did \",$D24)))","v":""}]
[null,null,null,{"$f":"IF($D24=0,\"\",(CONCATENATE(\"  did \",$E24)))","v":""}]
[null,null,null,{"$f":"IF($D24=0,\"\",(CONCATENATE(\"  num-rings \",$G24)))","v":""}]
[null,null,null,"!"]
[null,null,null,"!"]
[null,null,null,"!"]
[null,null,null,"!"]
[null,null,null,{"$f":"IF($D24=0,\"\",(CONCATENATE(\"!\")))","v":""}]
[null,null,null,{"$f":"IF($D25=0,\"\",(CONCATENATE(\"voice user \",$F25)))","v":""}]
[null,null,null,{"$f":"IF($D25=0,\"\",(CONCATENATE(\"  connect \",$C25)))","v":""}]
[null,null,null,{"$f":"IF($D25=0,\"\",(CONCATENATE(\"  cos GLOBAL\")))","v":""}]
[null,null,null,{"$f":"IF($D25=0,\"\",(CONCATENATE(\"  first name \",$D25)))","v":""}]
[null,null,null,{"$f":"IF($D25=0,\"\",(CONCATENATE(\"  last-name Phone\")))","v":""}]
[null,null,null,{"$f":"IF($D25=0,\"\",(CONCATENATE(\"  password \",$F25)))","v":""}]
[null,null,null,{"$f":"IF($D25=0,\"\",(CONCATENATE(\"  caller-id-override external-number \",$D25)))","v":""}]
[null,null,null,{"$f":"IF($D25=0,\"\",(CONCATENATE(\"  did \",$D25)))","v":""}]
[null,null,null,{"$f":"IF($D25=0,\"\",(CONCATENATE(\"  did \",$E25)))","v":""}]
[null,null,null,{"$f":"IF($D25=0,\"\",(CONCATENATE(\"  num-rings \",$G25)))","v":""}]
[null,null,null,"!"]
[null,null,null,"!"]
[null,null,null,"!"]
[null,null,null,"!"]
[null,null,null,{"$f":"IF($D25=0,\"\",(CONCATENATE(\"!\")))","v":""}]
[null,null,null,{"$f":"IF($D26=0,\"\",(CONCATENATE(\"voice user \",$F26)))","v":""}]
[null,null,null,{"$f":"IF($D26=0,\"\",(CONCATENATE(\"  connect \",$C26)))","v":""}]
[null,null,null,{"$f":"IF($D26=0,\"\",(CONCATENATE(\"  cos GLOBAL\")))","v":""}]
[null,null,null,{"$f":"IF($D26=0,\"\",(CONCATENATE(\"  first name \",$D26)))","v":""}]
[null,null,null,{"$f":"IF($D26=0,\"\",(CONCATENATE(\"  last-name Phone\")))","v":""}]
[null,null,null,{"$f":"IF($D26=0,\"\",(CONCATENATE(\"  password \",$F26)))","v":""}]
[null,null,null,{"$f":"IF($D26=0,\"\",(CONCATENATE(\"  caller-id-override external-number \",$D26)))","v":""}]
[null,null,null,{"$f":"IF($D26=0,\"\",(CONCATENATE(\"  did \",$D26)))","v":""}]
[null,null,null,{"$f":"IF($D26=0,\"\",(CONCATENATE(\"  did \",$E26)))","v":""}]
[null,null,null,{"$f":"IF($D26=0,\"\",(CONCATENATE(\"  num-rings \",$G26)))","v":""}]
[null,null,null,"!"]
[null,null,null,"!"]
[null,null,null,"!"]
[null,null,null,"!"]
[null,null,null,{"$f":"IF($D26=0,\"\",(CONCATENATE(\"!\")))","v":""}]

{"sheet":"Fax","index":2,"n_rows":452,"n_cols":7,"rows_kept":452,"cut":false,"hidden":false,"merged":[[28,4,31,5]]}
["How to use this sheet"]
["Use this sheet to map Fax numbers to FXS and dedicated FAX SIP User account",null,"Port","Primary Phone Number","Temp Number (Opt)","Ext# (auto)","Number of Rings"]
["Enter the necessary phone numbers on the appropriate ports",null,"FXS 0/1",8055551212,null,{"$f":"CONCATENATE(RIGHT(D3,4))","v":"1212"},5]
["Enter the SIP trunk Information below from Avalo",null,"FXS 0/2",null,null,{"$f":"CONCATENATE(RIGHT(D4,4))","v":""},5]
["If a temp number is being used pre-port, enter in Temp Number Column",null,"FXS 0/3",null,null,{"$f":"CONCATENATE(RIGHT(D5,4))","v":""},5]
["Extention numbers will be pre-populated from Phone Number",null,"FXS 0/4",null,null,"",5]
["Adjust Number of Rings if necessary - Default of 5 rings should be used for Fax Machines",null,"FXS 0/5",null,null,"",5]
["Click \"Refresh Table\" button to see complete script",null,"FXS 0/6",null,null,"",5]
["Copy Resulting Script and paste into the Adtran Config",null,"FXS 0/7",null,null,"",5]
[null,null,"FXS 0/8",null,null,"",5]
["Pre-Requisite",null,"FXS 0/9",null,null,"",5]
["Create a Fax Device in Avalo for all fax ports to use",null,"FXS 0/10",null,null,"",5]
["Set Invite Format as NPA NXX XXXX on Device SIP tab in Avalo",null,"FXS 0/11",null,null,"",5]
["Create a Call Workflow for Fax and assign Fax numbers to it in Avalo",null,"FXS 0/12",null,null,"",5]
["Send calls on Fax Call Workflow to the Fax Device you created in step 1",null,"FXS 0/13",null,null,"",5]
[null,null,"FXS 0/14",null,null,"",5]
["*Numbers assigned to Fax ports must not be assigned to PRI or Phone ports",null,"FXS 0/15",null,null,"",5]
[null,null,"FXS 0/16",null,null,"",5]
[null,null,"FXS 0/17",null,null,"",5]
[null,null,"FXS 0/18",null,null,"",5]
[null,null,"FXS 0/19",null,null,"",5]
[null,null,"FXS 0/20",null,null,"",5]
[null,null,"FXS 0/21",null,null,"",5]
[null,null,"FXS 0/22",null,null,"",5]
[null,null,"FXS 0/23",null,null,"",5]
[null,null,"FXS 0/24",null,null,"",5]
[]
["Avalo Fax Account"]
["Fax SIP Trunk Number (choose next available in your Device - T04 is default)","T04",null,"Column1","Click \"Refresh Table\" button after adding/removing numbers above"]
["Avalo SIP Realm for this Account","Get from Device SIP tab",null,{"$f":"CONCATENATE(\"voice trunk \",$B$29,\" type sip\")","v":"voice trunk T04 type sip"}]
["Maximum Number of Calls allowed on trunk",{"$f":"COUNTA($D$3:$D$26)","v":1},null,"  description \"Fax_Phone_number\""]
["Device Username","Get from Device SIP tab",null,"  sip-server primary sipproxy.avpnet.us"]
["Device Password","Get from Device SIP tab",null,"  sip-server validation register"]
[null,null,null,"  registrar threshold absolute 10"]
[null,null,null,"  registrar expire-time 100"]
[null,null,null,{"$f":"CONCATENATE(\"  domain \",$B$30)","v":"  domain Get from Device SIP tab"}]
[null,null,null,{"$f":"CONCATENATE(\"  max-number-calls \",$B$31)","v":"  max-number-calls 1"}]
[null,null,null,{"$f":"CONCATENATE(\"  register \",$B$32,\" auth-name \",$B$32,\" password \",$B$33)","v":"  register Get from Device SIP tab auth-name Get from Device SIP tab password Get from Device SIP tab"}]
[null,null,null,"  grammar request-uri host domain"]
[null,null,null,"  grammar from host domain"]
[null,null,null,"  grammar p-asserted-identity host domain"]
[null,null,null,"  grammar to host domain"]
[null,null,null,{"$f":"CONCATENATE(\"  authentication username \",$B$32,\" password \",$B$33)","v":"  authentication username Get from Device SIP tab password Get from Device SIP tab"}]
[null,null,null,"!"]
[null,null,null,{"$f":"IF($D3=0,\"\",(CONCATENATE(\"voice user \",$F3)))","v":"voice user 1212"}]
[null,null,null,{"$f":"IF($D3=0,\"\",(CONCATENATE(\"  connect \",$C3)))","v":"  connect FXS 0/1"}]
[null,null,null,{"$f":"IF($D3=0,\"\",(CONCATENATE(\"  cos GLOBAL\")))","v":"  cos GLOBAL"}]
[null,null,null,{"$f":"IF($D3=0,\"\",(CONCATENATE(\"  first name \",$D3)))","v":"  first name 8055551212"}]
[null,null,null,{"$f":"IF($D3=0,\"\",(CONCATENATE(\"  last-name fax\")))","v":"  last-name fax"}]
[null,null,null,{"$f":"IF($D3=0,\"\",(CONCATENATE(\"  password \",$F3)))","v":"  password 1212"}]
[null,null,null,{"$f":"IF($D3=0,\"\",(CONCATENATE(\"  caller-id-override external-number \",$D3)))","v":"  caller-id-override external-number 8055551212"}]
[null,null,null,{"$f":"IF($D3=0,\"\",(CONCATENATE(\"  did \",$D3)))","v":"  did 8055551212"}]
[null,null,null,{"$f":"IF($D3=0,\"\",(CONCATENATE(\"  did \",$E3)))","v":"  did "}]
[null,null,null,{"$f":"IF($D3=0,\"\",(CONCATENATE(\"  num-rings \",$G3)))","v":"  num-rings 5"}]
[null,null,null,{"$f":"IF($D3=0,\"\",(CONCATENATE(\"  sip-identity \",$D3,\" \",$B$29)))","v":"  sip-identity 8055551212 T04"}]
[null,null,null,{"$f":"IF($D3=0,\"\",(CONCATENATE(\"  sip-authentication password \",$B$33)))","v":"  sip-authentication password Get from Device SIP tab"}]
[null,null,null,{"$f":"IF($D3=0,\"\",(CONCATENATE(\"  t38\")))","v":"  t38"}]
[null,null,null,{"$f":"IF($D3=0,\"\",(CONCATENATE(\"  no nls\")))","v":"  no nls"}]
[null,null,null,{"$f":"IF($D3=0,\"\",(CONCATENATE(\"  no echo-cancellation\")))","v":"  no echo-cancellation"}]
[null,null,null,{"$f":"IF($D3=0,\"\",(CONCATENATE(\"  codec-list default\")))","v":"  codec-list default"}]
[null,null,null,{"$f":"IF($D3=0,\"\",(CONCATENATE(\"!\")))","v":"!"}]
[null,null,null,{"$f":"IF($D4=0,\"\",(CONCATENATE(\"voice user \",$F4)))","v":""}]
[null,null,null,{"$f":"IF($D4=0,\"\",(CONCATENATE(\"  connect \",$C4)))","v":""}]
[null,null,null,{"$f":"IF($D4=0,\"\",(CONCATENATE(\"  cos GLOBAL\")))","v":""}]
[null,null,null,{"$f":"IF($D4=0,\"\",(CONCATENATE(\"  first name \",$D4)))","v":""}]
[null,null,null,{"$f":"IF($D4=0,\"\",(CONCATENATE(\"  last-name fax\")))","v":""}]
[null,null,null,{"$f":"IF($D4=0,\"\",(CONCATENATE(\"  password \",$F4)))","v":""}]
[null,null,null,{"$f":"IF($D4=0,\"\",(CONCATENATE(\"  caller-id-override external-number \",$D4)))","v":""}]
[null,null,null,{"$f":"IF($D4=0,\"\",(CONCATENATE(\"  did \",$D4)))","v":""}]
[null,null,null,{"$f":"IF($D4=0,\"\",(CONCATENATE(\"  did \",$E4)))","v":""}]
[null,null,null,{"$f":"IF($D4=0,\"\",(CONCATENATE(\"  num-rings \",$G4)))","v":""}]
[null,null,null,{"$f":"IF($D4=0,\"\",(CONCATENATE(\"  sip-identity \",$D4,\" \",$B$29)))","v":""}]
[null,null,null,{"$f":"IF($D4=0,\"\",(CONCATENATE(\"  sip-authentication password \",$B$33)))","v":""}]
[null,null,null,{"$f":"IF($D4=0,\"\",(CONCATENATE(\"  t38\")))","v":""}]
[null,null,null,{"$f":"IF($D4=0,\"\",(CONCATENATE(\"  no nls\")))","v":""}]
[null,null,null,{"$f":"IF($D4=0,\"\",(CONCATENATE(\"  no echo-cancellation\")))","v":""}]
[null,null,null,{"$f":"IF($D4=0,\"\",(CONCATENATE(\"  codec-list default\")))","v":""}]
[null,null,null,{"$f":"IF($D4=0,\"\",(CONCATENATE(\"!\")))","v":""}]
[null,null,null,{"$f":"IF($D5=0,\"\",(CONCATENATE(\"voice user \",$F5)))","v":""}]
[null,null,null,{"$f":"IF($D5=0,\"\",(CONCATENATE(\"  connect \",$C5)))","v":""}]
[null,null,null,{"$f":"IF($D5=0,\"\",(CONCATENATE(\"  cos GLOBAL\")))","v":""}]
[null,null,null,{"$f":"IF($D5=0,\"\",(CONCATENATE(\"  first name \",$D5)))","v":""}]
[null,null,null,{"$f":"IF($D5=0,\"\",(CONCATENATE(\"  last-name fax\")))","v":""}]
[null,null,null,{"$f":"IF($D5=0,\"\",(CONCATENATE(\"  password \",$F5)))","v":""}]
[null,null,null,{"$f":"IF($D5=0,\"\",(CONCATENATE(\"  caller-id-override external-number \",$D5)))","v":""}]
[null,null,null,{"$f":"IF($D5=0,\"\",(CONCATENATE(\"  did \",$D5)))","v":""}]
[null,null,null,{"$f":"IF($D5=0,\"\",(CONCATENATE(\"  did \",$E5)))","v":""}]
[null,null,null,{"$f":"IF($D5=0,\"\",(CONCATENATE(\"  num-rings \",$G5)))","v":""}]
[null,null,null,{"$f":"IF($D5=0,\"\",(CONCATENATE(\"  sip-identity \",$D5,\" \",$B$29)))","v":""}]
[null,null,null,{"$f":"IF($D5=0,\"\",(CONCATENATE(\"  sip-authentication password \",$B$33)))","v":""}]
[null,null,null,{"$f":"IF($D5=0,\"\",(CONCATENATE(\"  t38\")))","v":""}]
[null,null,null,{"$f":"IF($D5=0,\"\",(CONCATENATE(\"  no nls\")))","v":""}]
[null,null,null,{"$f":"IF($D5=0,\"\",(CONCATENATE(\"  no echo-cancellation\")))","v":""}]
[null,null,null,{"$f":"IF($D5=0,\"\",(CONCATENATE(\"  codec-list default\")))","v":""}]
[null,null,null,{"$f":"IF($D5=0,\"\",(CONCATENATE(\"!\")))","v":""}]
[null,null,null,{"$f":"IF($D6=0,\"\",(CONCATENATE(\"voice user \",$F6)))","v":""}]
[null,null,null,{"$f":"IF($D6=0,\"\",(CONCATENATE(\"  connect \",$C6)))","v":""}]
[null,null,null,{"$f":"IF($D6=0,\"\",(CONCATENATE(\"  cos GLOBAL\")))","v":""}]
[null,null,null,{"$f":"IF($D6=0,\"\",(CONCATENATE(\"  first name \",$D6)))","v":""}]
[null,null,null,{"$f":"IF($D6=0,\"\",(CONCATENATE(\"  last-name fax\")))","v":""}]
[null,null,null,{"$f":"IF($D6=0,\"\",(CONCATENATE(\"  password \",$F6)))","v":""}]
[null,null,null,{"$f":"IF($D6=0,\"\",(CONCATENATE(\"  caller-id-override external-number \",$D6)))","v":""}]
[null,null,null,{"$f":"IF($D6=0,\"\",(CONCATENATE(\"  did \",$D6)))","v":""}]
[null,null,null,{"$f":"IF($D6=0,\"\",(CONCATENATE(\"  did \",$E6)))","v":""}]
[null,null,null,{"$f":"IF($D6=0,\"\",(CONCATENATE(\"  num-rings \",$G6)))","v":""}]
[null,null,null,{"$f":"IF($D6=0,\"\",(CONCATENATE(\"  sip-identity \",$D6,\" \",$B$29)))","v":""}]
[null,null,null,{"$f":"IF($D6=0,\"\",(CONCATENATE(\"  sip-authentication password \",$B$33)))","v":""}]
[null,null,null,{"$f":"IF($D6=0,\"\",(CONCATENATE(\"  t38\")))","v":""}]
[null,null,null,{"$f":"IF($D6=0,\"\",(CONCATENATE(\"  no nls\")))","v":""}]
[null,null,null,{"$f":"IF($D6=0,\"\",(CONCATENATE(\"  no echo-cancellation\")))","v":""}]
[null,null,null,{"$f":"IF($D6=0,\"\",(CONCATENATE(\"  codec-list default\")))","v":""}]
[null,null,null,{"$f":"IF($D6=0,\"\",(CONCATENATE(\"!\")))","v":""}]
[null,null,null,{"$f":"IF($D7=0,\"\",(CONCATENATE(\"voice user \",$F7)))","v":""}]
[null,null,null,{"$f":"IF($D7=0,\"\",(CONCATENATE(\"  connect \",$C7)))","v":""}]
[null,null,null,{"$f":"IF($D7=0,\"\",(CONCATENATE(\"  cos GLOBAL\")))","v":""}]
[null,null,null,{"$f":"IF($D7=0,\"\",(CONCATENATE(\"  first name \",$D7)))","v":""}]
[null,null,null,{"$f":"IF($D7=0,\"\",(CONCATENATE(\"  last-name fax\")))","v":""}]
[null,null,null,{"$f":"IF($D7=0,\"\",(CONCATENATE(\"  password \",$F7)))","v":""}]
[null,null,null,{"$f":"IF($D7=0,\"\",(CONCATENATE(\"  caller-id-override external-number \",$D7)))","v":""}]
[null,null,null,{"$f":"IF($D7=0,\"\",(CONCATENATE(\"  did \",$D7)))","v":""}]
[null,null,null,{"$f":"IF($D7=0,\"\",(CONCATENATE(\"  did \",$E7)))","v":""}]
[null,null,null,{"$f":"IF($D7=0,\"\",(CONCATENATE(\"  num-rings \",$G7)))","v":""}]
[null,null,null,{"$f":"IF($D7=0,\"\",(CONCATENATE(\"  sip-identity \",$D7,\" \",$B$29)))","v":""}]
[null,null,null,{"$f":"IF($D7=0,\"\",(CONCATENATE(\"  sip-authentication password \",$B$33)))","v":""}]
[null,null,null,{"$f":"IF($D7=0,\"\",(CONCATENATE(\"  t38\")))","v":""}]
[null,null,null,{"$f":"IF($D7=0,\"\",(CONCATENATE(\"  no nls\")))","v":""}]
[null,null,null,{"$f":"IF($D7=0,\"\",(CONCATENATE(\"  no echo-cancellation\")))","v":""}]
[null,null,null,{"$f":"IF($D7=0,\"\",(CONCATENATE(\"  codec-list default\")))","v":""}]
[null,null,null,{"$f":"IF($D7=0,\"\",(CONCATENATE(\"!\")))","v":""}]
[null,null,null,{"$f":"IF($D8=0,\"\",(CONCATENATE(\"voice user \",$F8)))","v":""}]
[null,null,null,{"$f":"IF($D8=0,\"\",(CONCATENATE(\"  connect \",$C8)))","v":""}]
[null,null,null,{"$f":"IF($D8=0,\"\",(CONCATENATE(\"  cos GLOBAL\")))","v":""}]
[null,null,null,{"$f":"IF($D8=0,\"\",(CONCATENATE(\"  first name \",$D8)))","v":""}]
[null,null,null,{"$f":"IF($D8=0,\"\",(CONCATENATE(\"  last-name fax\")))","v":""}]
[null,null,null,{"$f":"IF($D8=0,\"\",(CONCATENATE(\"  password \",$F8)))","v":""}]
[null,null,null,{"$f":"IF($D8=0,\"\",(CONCATENATE(\"  caller-id-override external-number \",$D8)))","v":""}]
[null,null,null,{"$f":"IF($D8=0,\"\",(CONCATENATE(\"  did \",$D8)))","v":""}]
[null,null,null,{"$f":"IF($D8=0,\"\",(CONCATENATE(\"  did \",$E8)))","v":""}]
[null,null,null,{"$f":"IF($D8=0,\"\",(CONCATENATE(\"  num-rings \",$G8)))","v":""}]
[null,null,null,{"$f":"IF($D8=0,\"\",(CONCATENATE(\"  sip-identity \",$D8,\" \",$B$29)))","v":""}]
[null,null,null,{"$f":"IF($D8=0,\"\",(CONCATENATE(\"  sip-authentication password \",$B$33)))","v":""}]
[null,null,null,{"$f":"IF($D8=0,\"\",(CONCATENATE(\"  t38\")))","v":""}]
[null,null,null,{"$f":"IF($D8=0,\"\",(CONCATENATE(\"  no nls\")))","v":""}]
[null,null,null,{"$f":"IF($D8=0,\"\",(CONCATENATE(\"  no echo-cancellation\")))","v":""}]
[null,null,null,{"$f":"IF($D8=0,\"\",(CONCATENATE(\"  codec-list default\")))","v":""}]
[null,null,null,{"$f":"IF($D8=0,\"\",(CONCATENATE(\"!\")))","v":""}]
[null,null,null,{"$f":"IF($D9=0,\"\",(CONCATENATE(\"voice user \",$F9)))","v":""}]
[null,null,null,{"$f":"IF($D9=0,\"\",(CONCATENATE(\"  connect \",$C9)))","v":""}]
[null,null,null,{"$f":"IF($D9=0,\"\",(CONCATENATE(\"  cos GLOBAL\")))","v":""}]
[null,null,null,{"$f":"IF($D9=0,\"\",(CONCATENATE(\"  first name \",$D9)))","v":""}]
[null,null,null,{"$f":"IF($D9=0,\"\",(CONCATENATE(\"  last-name fax\")))","v":""}]
[null,null,null,{"$f":"IF($D9=0,\"\",(CONCATENATE(\"  password \",$F9)))","v":""}]
[null,null,null,{"$f":"IF($D9=0,\"\",(CONCATENATE(\"  caller-id-override external-number \",$D9)))","v":""}]
[null,null,null,{"$f":"IF($D9=0,\"\",(CONCATENATE(\"  did \",$D9)))","v":""}]
[null,null,null,{"$f":"IF($D9=0,\"\",(CONCATENATE(\"  did \",$E9)))","v":""}]
[null,null,null,{"$f":"IF($D9=0,\"\",(CONCATENATE(\"  num-rings \",$G9)))","v":""}]
[null,null,null,{"$f":"IF($D9=0,\"\",(CONCATENATE(\"  sip-identity \",$D9,\" \",$B$29)))","v":""}]
[null,null,null,{"$f":"IF($D9=0,\"\",(CONCATENATE(\"  sip-authentication password \",$B$33)))","v":""}]
[null,null,null,{"$f":"IF($D9=0,\"\",(CONCATENATE(\"  t38\")))","v":""}]
[null,null,null,{"$f":"IF($D9=0,\"\",(CONCATENATE(\"  no nls\")))","v":""}]
[null,null,null,{"$f":"IF($D9=0,\"\",(CONCATENATE(\"  no echo-cancellation\")))","v":""}]
[null,null,null,{"$f":"IF($D9=0,\"\",(CONCATENATE(\"  codec-list default\")))","v":""}]
[null,null,null,{"$f":"IF($D9=0,\"\",(CONCATENATE(\"!\")))","v":""}]
[null,null,null,{"$f":"IF($D10=0,\"\",(CONCATENATE(\"voice user \",$F10)))","v":""}]
[null,null,null,{"$f":"IF($D10=0,\"\",(CONCATENATE(\"  connect \",$C10)))","v":""}]
[null,null,null,{"$f":"IF($D10=0,\"\",(CONCATENATE(\"  cos GLOBAL\")))","v":""}]
[null,null,null,{"$f":"IF($D10=0,\"\",(CONCATENATE(\"  first name \",$D10)))","v":""}]
[null,null,null,{"$f":"IF($D10=0,\"\",(CONCATENATE(\"  last-name fax\")))","v":""}]
[null,null,null,{"$f":"IF($D10=0,\"\",(CONCATENATE(\"  password \",$F10)))","v":""}]
[null,null,null,{"$f":"IF($D10=0,\"\",(CONCATENATE(\"  caller-id-override external-number \",$D10)))","v":""}]
[null,null,null,{"$f":"IF($D10=0,\"\",(CONCATENATE(\"  did \",$D10)))","v":""}]
[null,null,null,{"$f":"IF($D10=0,\"\",(CONCATENATE(\"  did \",$E10)))","v":""}]
[null,null,null,{"$f":"IF($D10=0,\"\",(CONCATENATE(\"  num-rings \",$G10)))","v":""}]
[null,null,null,{"$f":"IF($D10=0,\"\",(CONCATENATE(\"  sip-identity \",$D10,\" \",$B$29)))","v":""}]
[null,null,null,{"$f":"IF($D10=0,\"\",(CONCATENATE(\"  sip-authentication password \",$B$33)))","v":""}]
[null,null,null,{"$f":"IF($D10=0,\"\",(CONCATENATE(\"  t38\")))","v":""}]
[null,null,null,{"$f":"IF($D10=0,\"\",(CONCATENATE(\"  no nls\")))","v":""}]
[null,null,null,{"$f":"IF($D10=0,\"\",(CONCATENATE(\"  no echo-cancellation\")))","v":""}]
[null,null,null,{"$f":"IF($D10=0,\"\",(CONCATENATE(\"  codec-list default\")))","v":""}]
[null,null,null,{"$f":"IF($D10=0,\"\",(CONCATENATE(\"!\")))","v":""}]
[null,null,null,{"$f":"IF($D11=0,\"\",(CONCATENATE(\"voice user \",$F11)))","v":""}]
[null,null,null,{"$f":"IF($D11=0,\"\",(CONCATENATE(\"  connect \",$C11)))","v":""}]
[null,null,null,{"$f":"IF($D11=0,\"\",(CONCATENATE(\"  cos GLOBAL\")))","v":""}]
[null,null,null,{"$f":"IF($D11=0,\"\",(CONCATENATE(\"  first name \",$D11)))","v":""}]
[null,null,null,{"$f":"IF($D11=0,\"\",(CONCATENATE(\"  last-name fax\")))","v":""}]
[null,null,null,{"$f":"IF($D11=0,\"\",(CONCATENATE(\"  password \",$F11)))","v":""}]
[null,null,null,{"$f":"IF($D11=0,\"\",(CONCATENATE(\"  caller-id-override external-number \",$D11)))","v":""}]
[null,null,null,{"$f":"IF($D11=0,\"\",(CONCATENATE(\"  did \",$D11)))","v":""}]
[null,null,null,{"$f":"IF($D11=0,\"\",(CONCATENATE(\"  did \",$E11)))","v":""}]
[null,null,null,{"$f":"IF($D11=0,\"\",(CONCATENATE(\"  num-rings \",$G11)))","v":""}]
[null,null,null,{"$f":"IF($D11=0,\"\",(CONCATENATE(\"  sip-identity \",$D11,\" \",$B$29)))","v":""}]
[null,null,null,{"$f":"IF($D11=0,\"\",(CONCATENATE(\"  sip-authentication password \",$B$33)))","v":""}]
[null,null,null,{"$f":"IF($D11=0,\"\",(CONCATENATE(\"  t38\")))","v":""}]
[null,null,null,{"$f":"IF($D11=0,\"\",(CONCATENATE(\"  no nls\")))","v":""}]
[null,null,null,{"$f":"IF($D11=0,\"\",(CONCATENATE(\"  no echo-cancellation\")))","v":""}]
[null,null,null,{"$f":"IF($D11=0,\"\",(CONCATENATE(\"  codec-list default\")))","v":""}]
[null,null,null,{"$f":"IF($D11=0,\"\",(CONCATENATE(\"!\")))","v":""}]
[null,null,null,{"$f":"IF($D12=0,\"\",(CONCATENATE(\"voice user \",$F12)))","v":""}]
[null,null,null,{"$f":"IF($D12=0,\"\",(CONCATENATE(\"  connect \",$C12)))","v":""}]
[null,null,null,{"$f":"IF($D12=0,\"\",(CONCATENATE(\"  cos GLOBAL\")))","v":""}]
[null,null,null,{"$f":"IF($D12=0,\"\",(CONCATENATE(\"  first name \",$D12)))","v":""}]
[null,null,null,{"$f":"IF($D12=0,\"\",(CONCATENATE(\"  last-name fax\")))","v":""}]
[null,null,null,{"$f":"IF($D12=0,\"\",(CONCATENATE(\"  password \",$F12)))","v":""}]
[null,null,null,{"$f":"IF($D12=0,\"\",(CONCATENATE(\"  caller-id-override external-number \",$D12)))","v":""}]
[null,null,null,{"$f":"IF($D12=0,\"\",(CONCATENATE(\"  did \",$D12)))","v":""}]
[null,null,null,{"$f":"IF($D12=0,\"\",(CONCATENATE(\"  did \",$E12)))","v":""}]
[null,null,null,{"$f":"IF($D12=0,\"\",(CONCATENATE(\"  num-rings \",$G12)))","v":""}]
[null,null,null,{"$f":"IF($D12=0,\"\",(CONCATENATE(\"  sip-identity \",$D12,\" \",$B$29)))","v":""}]
[null,null,null,{"$f":"IF($D12=0,\"\",(CONCATENATE(\"  sip-authentication password \",$B$33)))","v":""}]
[null,null,null,{"$f":"IF($D12=0,\"\",(CONCATENATE(\"  t38\")))","v":""}]
[null,null,null,{"$f":"IF($D12=0,\"\",(CONCATENATE(\"  no nls\")))","v":""}]
[null,null,null,{"$f":"IF($D12=0,\"\",(CONCATENATE(\"  no echo-cancellation\")))","v":""}]
[null,null,null,{"$f":"IF($D12=0,\"\",(CONCATENATE(\"  codec-list default\")))","v":""}]
[null,null,null,{"$f":"IF($D12=0,\"\",(CONCATENATE(\"!\")))","v":""}]
[null,null,null,{"$f":"IF($D13=0,\"\",(CONCATENATE(\"voice user \",$F13)))","v":""}]
[null,null,null,{"$f":"IF($D13=0,\"\",(CONCATENATE(\"  connect \",$C13)))","v":""}]
[null,null,null,{"$f":"IF($D13=0,\"\",(CONCATENATE(\"  cos GLOBAL\")))","v":""}]
[null,null,null,{"$f":"IF($D13=0,\"\",(CONCATENATE(\"  first name \",$D13)))","v":""}]
[null,null,null,{"$f":"IF($D13=0,\"\",(CONCATENATE(\"  last-name fax\")))","v":""}]
[null,null,null,{"$f":"IF($D13=0,\"\",(CONCATENATE(\"  password \",$F13)))","v":""}]
[null,null,null,{"$f":"IF($D13=0,\"\",(CONCATENATE(\"  caller-id-override external-number \",$D13)))","v":""}]
[null,null,null,{"$f":"IF($D13=0,\"\",(CONCATENATE(\"  did \",$D13)))","v":""}]
[null,null,null,{"$f":"IF($D13=0,\"\",(CONCATENATE(\"  did \",$E13)))","v":""}]
[null,null,null,{"$f":"IF($D13=0,\"\",(CONCATENATE(\"  num-rings \",$G13)))","v":""}]
[null,null,null,{"$f":"IF($D13=0,\"\",(CONCATENATE(\"  sip-identity \",$D13,\" \",$B$29)))","v":""}]
[null,null,null,{"$f":"IF($D13=0,\"\",(CONCATENATE(\"  sip-authentication password \",$B$33)))","v":""}]
[null,null,null,{"$f":"IF($D13=0,\"\",(CONCATENATE(\"  t38\")))","v":""}]
[null,null,null,{"$f":"IF($D13=0,\"\",(CONCATENATE(\"  no nls\")))","v":""}]
[null,null,null,{"$f":"IF($D13=0,\"\",(CONCATENATE(\"  no echo-cancellation\")))","v":""}]
[null,null,null,{"$f":"IF($D13=0,\"\",(CONCATENATE(\"  codec-list default\")))","v":""}]
[null,null,null,{"$f":"IF($D13=0,\"\",(CONCATENATE(\"!\")))","v":""}]
[null,null,null,{"$f":"IF($D14=0,\"\",(CONCATENATE(\"voice user \",$F14)))","v":""}]
[null,null,null,{"$f":"IF($D14=0,\"\",(CONCATENATE(\"  connect \",$C14)))","v":""}]
[null,null,null,{"$f":"IF($D14=0,\"\",(CONCATENATE(\"  cos GLOBAL\")))","v":""}]
[null,null,null,{"$f":"IF($D14=0,\"\",(CONCATENATE(\"  first name \",$D14)))","v":""}]
[null,null,null,{"$f":"IF($D14=0,\"\",(CONCATENATE(\"  last-name fax\")))","v":""}]
[null,null,null,{"$f":"IF($D14=0,\"\",(CONCATENATE(\"  password \",$F14)))","v":""}]
[null,null,null,{"$f":"IF($D14=0,\"\",(CONCATENATE(\"  caller-id-override external-number \",$D14)))","v":""}]
[null,null,null,{"$f":"IF($D14=0,\"\",(CONCATENATE(\"  did \",$D14)))","v":""}]
[null,null,null,{"$f":"IF($D14=0,\"\",(CONCATENATE(\"  did \",$E14)))","v":""}]
[null,null,null,{"$f":"IF($D14=0,\"\",(CONCATENATE(\"  num-rings \",$G14)))","v":""}]
[null,null,null,{"$f":"IF($D14=0,\"\",(CONCATENATE(\"  sip-identity \",$D14,\" \",$B$29)))","v":""}]
[null,null,null,{"$f":"IF($D14=0,\"\",(CONCATENATE(\"  sip-authentication password \",$B$33)))","v":""}]
[null,null,null,{"$f":"IF($D14=0,\"\",(CONCATENATE(\"  t38\")))","v":""}]
[null,null,null,{"$f":"IF($D14=0,\"\",(CONCATENATE(\"  no nls\")))","v":""}]
[null,null,null,{"$f":"IF($D14=0,\"\",(CONCATENATE(\"  no echo-cancellation\")))","v":""}]
[null,null,null,{"$f":"IF($D14=0,\"\",(CONCATENATE(\"  codec-list default\")))","v":""}]
[null,null,null,{"$f":"IF($D14=0,\"\",(CONCATENATE(\"!\")))","v":""}]
[null,null,null,{"$f":"IF($D15=0,\"\",(CONCATENATE(\"voice user \",$F15)))","v":""}]
[null,null,null,{"$f":"IF($D15=0,\"\",(CONCATENATE(\"  connect \",$C15)))","v":""}]
[null,null,null,{"$f":"IF($D15=0,\"\",(CONCATENATE(\"  cos GLOBAL\")))","v":""}]
[null,null,null,{"$f":"IF($D15=0,\"\",(CONCATENATE(\"  first name \",$D15)))","v":""}]
[null,null,null,{"$f":"IF($D15=0,\"\",(CONCATENATE(\"  last-name fax\")))","v":""}]
[null,null,null,{"$f":"IF($D15=0,\"\",(CONCATENATE(\"  password \",$F15)))","v":""}]
[null,null,null,{"$f":"IF($D15=0,\"\",(CONCATENATE(\"  caller-id-override external-number \",$D15)))","v":""}]
[null,null,null,{"$f":"IF($D15=0,\"\",(CONCATENATE(\"  did \",$D15)))","v":""}]
[null,null,null,{"$f":"IF($D15=0,\"\",(CONCATENATE(\"  did \",$E15)))","v":""}]
[null,null,null,{"$f":"IF($D15=0,\"\",(CONCATENATE(\"  num-rings \",$G15)))","v":""}]
[null,null,null,{"$f":"IF($D15=0,\"\",(CONCATENATE(\"  sip-identity \",$D15,\" \",$B$29)))","v":""}]
[null,null,null,{"$f":"IF($D15=0,\"\",(CONCATENATE(\"  sip-authentication password \",$B$33)))","v":""}]
[null,null,null,{"$f":"IF($D15=0,\"\",(CONCATENATE(\"  t38\")))","v":""}]
[null,null,null,{"$f":"IF($D15=0,\"\",(CONCATENATE(\"  no nls\")))","v":""}]
[null,null,null,{"$f":"IF($D15=0,\"\",(CONCATENATE(\"  no echo-cancellation\")))","v":""}]
[null,null,null,{"$f":"IF($D15=0,\"\",(CONCATENATE(\"  codec-list default\")))","v":""}]
[null,null,null,{"$f":"IF($D15=0,\"\",(CONCATENATE(\"!\")))","v":""}]
[null,null,null,{"$f":"IF($D16=0,\"\",(CONCATENATE(\"voice user \",$F16)))","v":""}]
[null,null,null,{"$f":"IF($D16=0,\"\",(CONCATENATE(\"  connect \",$C16)))","v":""}]
[null,null,null,{"$f":"IF($D16=0,\"\",(CONCATENATE(\"  cos GLOBAL\")))","v":""}]
[null,null,null,{"$f":"IF($D16=0,\"\",(CONCATENATE(\"  first name \",$D16)))","v":""}]
[null,null,null,{"$f":"IF($D16=0,\"\",(CONCATENATE(\"  last-name fax\")))","v":""}]
[null,null,null,{"$f":"IF($D16=0,\"\",(CONCATENATE(\"  password \",$F16)))","v":""}]
[null,null,null,{"$f":"IF($D16=0,\"\",(CONCATENATE(\"  caller-id-override external-number \",$D16)))","v":""}]
[null,null,null,{"$f":"IF($D16=0,\"\",(CONCATENATE(\"  did \",$D16)))","v":""}]
[null,null,null,{"$f":"IF($D16=0,\"\",(CONCATENATE(\"  did \",$E16)))","v":""}]
[null,null,null,{"$f":"IF($D16=0,\"\",(CONCATENATE(\"  num-rings \",$G16)))","v":""}]
[null,null,null,{"$f":"IF($D16=0,\"\",(CONCATENATE(\"  sip-identity \",$D16,\" \",$B$29)))","v":""}]
[null,null,null,{"$f":"IF($D16=0,\"\",(CONCATENATE(\"  sip-authentication password \",$B$33)))","v":""}]
[null,null,null,{"$f":"IF($D16=0,\"\",(CONCATENATE(\"  t38\")))","v":""}]
[null,null,null,{"$f":"IF($D16=0,\"\",(CONCATENATE(\"  no nls\")))","v":""}]
[null,null,null,{"$f":"IF($D16=0,\"\",(CONCATENATE(\"  no echo-cancellation\")))","v":""}]
[null,null,null,{"$f":"IF($D16=0,\"\",(CONCATENATE(\"  codec-list default\")))","v":""}]
[null,null,null,{"$f":"IF($D16=0,\"\",(CONCATENATE(\"!\")))","v":""}]
[null,null,null,{"$f":"IF($D17=0,\"\",(CONCATENATE(\"voice user \",$F17)))","v":""}]
[null,null,null,{"$f":"IF($D17=0,\"\",(CONCATENATE(\"  connect \",$C17)))","v":""}]
[null,null,null,{"$f":"IF($D17=0,\"\",(CONCATENATE(\"  cos GLOBAL\")))","v":""}]
[null,null,null,{"$f":"IF($D17=0,\"\",(CONCATENATE(\"  first name \",$D17)))","v":""}]
[null,null,null,{"$f":"IF($D17=0,\"\",(CONCATENATE(\"  last-name fax\")))","v":""}]
[null,null,null,{"$f":"IF($D17=0,\"\",(CONCATENATE(\"  password \",$F17)))","v":""}]
[null,null,null,{"$f":"IF($D17=0,\"\",(CONCATENATE(\"  caller-id-override external-number \",$D17)))","v":""}]
[null,null,null,{"$f":"IF($D17=0,\"\",(CONCATENATE(\"  did \",$D17)))","v":""}]
[null,null,null,{"$f":"IF($D17=0,\"\",(CONCATENATE(\"  did \",$E17)))","v":""}]
[null,null,null,{"$f":"IF($D17=0,\"\",(CONCATENATE(\"  num-rings \",$G17)))","v":""}]
[null,null,null,{"$f":"IF($D17=0,\"\",(CONCATENATE(\"  sip-identity \",$D17,\" \",$B$29)))","v":""}]
[null,null,null,{"$f":"IF($D17=0,\"\",(CONCATENATE(\"  sip-authentication password \",$B$33)))","v":""}]
[null,null,null,{"$f":"IF($D17=0,\"\",(CONCATENATE(\"  t38\")))","v":""}]
[null,null,null,{"$f":"IF($D17=0,\"\",(CONCATENATE(\"  no nls\")))","v":""}]
[null,null,null,{"$f":"IF($D17=0,\"\",(CONCATENATE(\"  no echo-cancellation\")))","v":""}]
[null,null,null,{"$f":"IF($D17=0,\"\",(CONCATENATE(\"  codec-list default\")))","v":""}]
[null,null,null,{"$f":"IF($D17=0,\"\",(CONCATENATE(\"!\")))","v":""}]
[null,null,null,{"$f":"IF($D18=0,\"\",(CONCATENATE(\"voice user \",$F18)))","v":""}]
[null,null,null,{"$f":"IF($D18=0,\"\",(CONCATENATE(\"  connect \",$C18)))","v":""}]
[null,null,null,{"$f":"IF($D18=0,\"\",(CONCATENATE(\"  cos GLOBAL\")))","v":""}]
[null,null,null,{"$f":"IF($D18=0,\"\",(CONCATENATE(\"  first name \",$D18)))","v":""}]
[null,null,null,{"$f":"IF($D18=0,\"\",(CONCATENATE(\"  last-name fax\")))","v":""}]
[null,null,null,{"$f":"IF($D18=0,\"\",(CONCATENATE(\"  password \",$F18)))","v":""}]
[null,null,null,{"$f":"IF($D18=0,\"\",(CONCATENATE(\"  caller-id-override external-number \",$D18)))","v":""}]
[null,null,null,{"$f":"IF($D18=0,\"\",(CONCATENATE(\"  did \",$D18)))","v":""}]
[null,null,null,{"$f":"IF($D18=0,\"\",(CONCATENATE(\"  did \",$E18)))","v":""}]
[null,null,null,{"$f":"IF($D18=0,\"\",(CONCATENATE(\"  num-rings \",$G18)))","v":""}]
[null,null,null,{"$f":"IF($D18=0,\"\",(CONCATENATE(\"  sip-identity \",$D18,\" \",$B$29)))","v":""}]
[null,null,null,{"$f":"IF($D18=0,\"\",(CONCATENATE(\"  sip-authentication password \",$B$33)))","v":""}]
[null,null,null,{"$f":"IF($D18=0,\"\",(CONCATENATE(\"  t38\")))","v":""}]
[null,null,null,{"$f":"IF($D18=0,\"\",(CONCATENATE(\"  no nls\")))","v":""}]
[null,null,null,{"$f":"IF($D18=0,\"\",(CONCATENATE(\"  no echo-cancellation\")))","v":""}]
[null,null,null,{"$f":"IF($D18=0,\"\",(CONCATENATE(\"  codec-list default\")))","v":""}]
[null,null,null,{"$f":"IF($D18=0,\"\",(CONCATENATE(\"!\")))","v":""}]
[null,null,null,{"$f":"IF($D19=0,\"\",(CONCATENATE(\"voice user \",$F19)))","v":""}]
[null,null,null,{"$f":"IF($D19=0,\"\",(CONCATENATE(\"  connect \",$C19)))","v":""}]
[null,null,null,{"$f":"IF($D19=0,\"\",(CONCATENATE(\"  cos GLOBAL\")))","v":""}]
[null,null,null,{"$f":"IF($D19=0,\"\",(CONCATENATE(\"  first name \",$D19)))","v":""}]
[null,null,null,{"$f":"IF($D19=0,\"\",(CONCATENATE(\"  last-name fax\")))","v":""}]
[null,null,null,{"$f":"IF($D19=0,\"\",(CONCATENATE(\"  password \",$F19)))","v":""}]
[null,null,null,{"$f":"IF($D19=0,\"\",(CONCATENATE(\"  caller-id-override external-number \",$D19)))","v":""}]
[null,null,null,{"$f":"IF($D19=0,\"\",(CONCATENATE(\"  did \",$D19)))","v":""}]
[null,null,null,{"$f":"IF($D19=0,\"\",(CONCATENATE(\"  did \",$E19)))","v":""}]
[null,null,null,{"$f":"IF($D19=0,\"\",(CONCATENATE(\"  num-rings \",$G19)))","v":""}]
[null,null,null,{"$f":"IF($D19=0,\"\",(CONCATENATE(\"  sip-identity \",$D19,\" \",$B$29)))","v":""}]
[null,null,null,{"$f":"IF($D19=0,\"\",(CONCATENATE(\"  sip-authentication password \",$B$33)))","v":""}]
[null,null,null,{"$f":"IF($D19=0,\"\",(CONCATENATE(\"  t38\")))","v":""}]
[null,null,null,{"$f":"IF($D19=0,\"\",(CONCATENATE(\"  no nls\")))","v":""}]
[null,null,null,{"$f":"IF($D19=0,\"\",(CONCATENATE(\"  no echo-cancellation\")))","v":""}]
[null,null,null,{"$f":"IF($D19=0,\"\",(CONCATENATE(\"  codec-list default\")))","v":""}]
[null,null,null,{"$f":"IF($D19=0,\"\",(CONCATENATE(\"!\")))","v":""}]
[null,null,null,{"$f":"IF($D20=0,\"\",(CONCATENATE(\"voice user \",$F20)))","v":""}]
[null,null,null,{"$f":"IF($D20=0,\"\",(CONCATENATE(\"  connect \",$C20)))","v":""}]
[null,null,null,{"$f":"IF($D20=0,\"\",(CONCATENATE(\"  cos GLOBAL\")))","v":""}]
[null,null,null,{"$f":"IF($D20=0,\"\",(CONCATENATE(\"  first name \",$D20)))","v":""}]
[null,null,null,{"$f":"IF($D20=0,\"\",(CONCATENATE(\"  last-name fax\")))","v":""}]
[null,null,null,{"$f":"IF($D20=0,\"\",(CONCATENATE(\"  password \",$F20)))","v":""}]
[null,null,null,{"$f":"IF($D20=0,\"\",(CONCATENATE(\"  caller-id-override external-number \",$D20)))","v":""}]
[null,null,null,{"$f":"IF($D20=0,\"\",(CONCATENATE(\"  did \",$D20)))","v":""}]
[null,null,null,{"$f":"IF($D20=0,\"\",(CONCATENATE(\"  did \",$E20)))","v":""}]
[null,null,null,{"$f":"IF($D20=0,\"\",(CONCATENATE(\"  num-rings \",$G20)))","v":""}]
[null,null,null,{"$f":"IF($D20=0,\"\",(CONCATENATE(\"  sip-identity \",$D20,\" \",$B$29)))","v":""}]
[null,null,null,{"$f":"IF($D20=0,\"\",(CONCATENATE(\"  sip-authentication password \",$B$33)))","v":""}]
[null,null,null,{"$f":"IF($D20=0,\"\",(CONCATENATE(\"  t38\")))","v":""}]
[null,null,null,{"$f":"IF($D20=0,\"\",(CONCATENATE(\"  no nls\")))","v":""}]
[null,null,null,{"$f":"IF($D20=0,\"\",(CONCATENATE(\"  no echo-cancellation\")))","v":""}]
[null,null,null,{"$f":"IF($D20=0,\"\",(CONCATENATE(\"  codec-list default\")))","v":""}]
[null,null,null,{"$f":"IF($D20=0,\"\",(CONCATENATE(\"!\")))","v":""}]
[null,null,null,{"$f":"IF($D21=0,\"\",(CONCATENATE(\"voice user \",$F21)))","v":""}]
[null,null,null,{"$f":"IF($D21=0,\"\",(CONCATENATE(\"  connect \",$C21)))","v":""}]
[null,null,null,{"$f":"IF($D21=0,\"\",(CONCATENATE(\"  cos GLOBAL\")))","v":""}]
[null,null,null,{"$f":"IF($D21=0,\"\",(CONCATENATE(\"  first name \",$D21)))","v":""}]
[null,null,null,{"$f":"IF($D21=0,\"\",(CONCATENATE(\"  last-name fax\")))","v":""}]
[null,null,null,{"$f":"IF($D21=0,\"\",(CONCATENATE(\"  password \",$F21)))","v":""}]
[null,null,null,{"$f":"IF($D21=0,\"\",(CONCATENATE(\"  caller-id-override external-number \",$D21)))","v":""}]
[null,null,null,{"$f":"IF($D21=0,\"\",(CONCATENATE(\"  did \",$D21)))","v":""}]
[null,null,null,{"$f":"IF($D21=0,\"\",(CONCATENATE(\"  did \",$E21)))","v":""}]
[null,null,null,{"$f":"IF($D21=0,\"\",(CONCATENATE(\"  num-rings \",$G21)))","v":""}]
[null,null,null,{"$f":"IF($D21=0,\"\",(CONCATENATE(\"  sip-identity \",$D21,\" \",$B$29)))","v":""}]
[null,null,null,{"$f":"IF($D21=0,\"\",(CONCATENATE(\"  sip-authentication password \",$B$33)))","v":""}]
[null,null,null,{"$f":"IF($D21=0,\"\",(CONCATENATE(\"  t38\")))","v":""}]
[null,null,null,{"$f":"IF($D21=0,\"\",(CONCATENATE(\"  no nls\")))","v":""}]
[null,null,null,{"$f":"IF($D21=0,\"\",(CONCATENATE(\"  no echo-cancellation\")))","v":""}]
[null,null,null,{"$f":"IF($D21=0,\"\",(CONCATENATE(\"  codec-list default\")))","v":""}]
[null,null,null,{"$f":"IF($D21=0,\"\",(CONCATENATE(\"!\")))","v":""}]
[null,null,null,{"$f":"IF($D22=0,\"\",(CONCATENATE(\"voice user \",$F22)))","v":""}]
[null,null,null,{"$f":"IF($D22=0,\"\",(CONCATENATE(\"  connect \",$C22)))","v":""}]
[null,null,null,{"$f":"IF($D22=0,\"\",(CONCATENATE(\"  cos GLOBAL\")))","v":""}]
[null,null,null,{"$f":"IF($D22=0,\"\",(CONCATENATE(\"  first name \",$D22)))","v":""}]
[null,null,null,{"$f":"IF($D22=0,\"\",(CONCATENATE(\"  last-name fax\")))","v":""}]
[null,null,null,{"$f":"IF($D22=0,\"\",(CONCATENATE(\"  password \",$F22)))","v":""}]
[null,null,null,{"$f":"IF($D22=0,\"\",(CONCATENATE(\"  caller-id-override external-number \",$D22)))","v":""}]
[null,null,null,{"$f":"IF($D22=0,\"\",(CONCATENATE(\"  did \",$D22)))","v":""}]
[null,null,null,{"$f":"IF($D22=0,\"\",(CONCATENATE(\"  did \",$E22)))","v":""}]
[null,null,null,{"$f":"IF($D22=0,\"\",(CONCATENATE(\"  num-rings \",$G22)))","v":""}]
[null,null,null,{"$f":"IF($D22=0,\"\",(CONCATENATE(\"  sip-identity \",$D22,\" \",$B$29)))","v":""}]
[null,null,null,{"$f":"IF($D22=0,\"\",(CONCATENATE(\"  sip-authentication password \",$B$33)))","v":""}]
[null,null,null,{"$f":"IF($D22=0,\"\",(CONCATENATE(\"  t38\")))","v":""}]
[null,null,null,{"$f":"IF($D22=0,\"\",(CONCATENATE(\"  no nls\")))","v":""}]
[null,null,null,{"$f":"IF($D22=0,\"\",(CONCATENATE(\"  no echo-cancellation\")))","v":""}]
[null,null,null,{"$f":"IF($D22=0,\"\",(CONCATENATE(\"  codec-list default\")))","v":""}]
[null,null,null,{"$f":"IF($D22=0,\"\",(CONCATENATE(\"!\")))","v":""}]
[null,null,null,{"$f":"IF($D23=0,\"\",(CONCATENATE(\"voice user \",$F23)))","v":""}]
[null,null,null,{"$f":"IF($D23=0,\"\",(CONCATENATE(\"  connect \",$C23)))","v":""}]
[null,null,null,{"$f":"IF($D23=0,\"\",(CONCATENATE(\"  cos GLOBAL\")))","v":""}]
[null,null,null,{"$f":"IF($D23=0,\"\",(CONCATENATE(\"  first name \",$D23)))","v":""}]
[null,null,null,{"$f":"IF($D23=0,\"\",(CONCATENATE(\"  last-name fax\")))","v":""}]
[null,null,null,{"$f":"IF($D23=0,\"\",(CONCATENATE(\"  password \",$F23)))","v":""}]
[null,null,null,{"$f":"IF($D23=0,\"\",(CONCATENATE(\"  caller-id-override external-number \",$D23)))","v":""}]
[null,null,null,{"$f":"IF($D23=0,\"\",(CONCATENATE(\"  did \",$D23)))","v":""}]
[null,null,null,{"$f":"IF($D23=0,\"\",(CONCATENATE(\"  did \",$E23)))","v":""}]
[null,null,null,{"$f":"IF($D23=0,\"\",(CONCATENATE(\"  num-rings \",$G23)))","v":""}]
[null,null,null,{"$f":"IF($D23=0,\"\",(CONCATENATE(\"  sip-identity \",$D23,\" \",$B$29)))","v":""}]
[null,null,null,{"$f":"IF($D23=0,\"\",(CONCATENATE(\"  sip-authentication password \",$B$33)))","v":""}]
[null,null,null,{"$f":"IF($D23=0,\"\",(CONCATENATE(\"  t38\")))","v":""}]
[null,null,null,{"$f":"IF($D23=0,\"\",(CONCATENATE(\"  no nls\")))","v":""}]
[null,null,null,{"$f":"IF($D23=0,\"\",(CONCATENATE(\"  no echo-cancellation\")))","v":""}]
[null,null,null,{"$f":"IF($D23=0,\"\",(CONCATENATE(\"  codec-list default\")))","v":""}]
[null,null,null,{"$f":"IF($D23=0,\"\",(CONCATENATE(\"!\")))","v":""}]
[null,null,null,{"$f":"IF($D24=0,\"\",(CONCATENATE(\"voice user \",$F24)))","v":""}]
[null,null,null,{"$f":"IF($D24=0,\"\",(CONCATENATE(\"  connect \",$C24)))","v":""}]
[null,null,null,{"$f":"IF($D24=0,\"\",(CONCATENATE(\"  cos GLOBAL\")))","v":""}]
[null,null,null,{"$f":"IF($D24=0,\"\",(CONCATENATE(\"  first name \",$D24)))","v":""}]
[null,null,null,{"$f":"IF($D24=0,\"\",(CONCATENATE(\"  last-name fax\")))","v":""}]
[null,null,null,{"$f":"IF($D24=0,\"\",(CONCATENATE(\"  password \",$F24)))","v":""}]
[null,null,null,{"$f":"IF($D24=0,\"\",(CONCATENATE(\"  caller-id-override external-number \",$D24)))","v":""}]
[null,null,null,{"$f":"IF($D24=0,\"\",(CONCATENATE(\"  did \",$D24)))","v":""}]
[null,null,null,{"$f":"IF($D24=0,\"\",(CONCATENATE(\"  did \",$E24)))","v":""}]
[null,null,null,{"$f":"IF($D24=0,\"\",(CONCATENATE(\"  num-rings \",$G24)))","v":""}]
[null,null,null,{"$f":"IF($D24=0,\"\",(CONCATENATE(\"  sip-identity \",$D24,\" \",$B$29)))","v":""}]
[null,null,null,{"$f":"IF($D24=0,\"\",(CONCATENATE(\"  sip-authentication password \",$B$33)))","v":""}]
[null,null,null,{"$f":"IF($D24=0,\"\",(CONCATENATE(\"  t38\")))","v":""}]
[null,null,null,{"$f":"IF($D24=0,\"\",(CONCATENATE(\"  no nls\")))","v":""}]
[null,null,null,{"$f":"IF($D24=0,\"\",(CONCATENATE(\"  no echo-cancellation\")))","v":""}]
[null,null,null,{"$f":"IF($D24=0,\"\",(CONCATENATE(\"  codec-list default\")))","v":""}]
[null,null,null,{"$f":"IF($D24=0,\"\",(CONCATENATE(\"!\")))","v":""}]
[null,null,null,{"$f":"IF($D25=0,\"\",(CONCATENATE(\"voice user \",$F25)))","v":""}]
[null,null,null,{"$f":"IF($D25=0,\"\",(CONCATENATE(\"  connect \",$C25)))","v":""}]
[null,null,null,{"$f":"IF($D25=0,\"\",(CONCATENATE(\"  cos GLOBAL\")))","v":""}]
[null,null,null,{"$f":"IF($D25=0,\"\",(CONCATENATE(\"  first name \",$D25)))","v":""}]
[null,null,null,{"$f":"IF($D25=0,\"\",(CONCATENATE(\"  last-name fax\")))","v":""}]
[null,null,null,{"$f":"IF($D25=0,\"\",(CONCATENATE(\"  password \",$F25)))","v":""}]
[null,null,null,{"$f":"IF($D25=0,\"\",(CONCATENATE(\"  caller-id-override external-number \",$D25)))","v":""}]
[null,null,null,{"$f":"IF($D25=0,\"\",(CONCATENATE(\"  did \",$D25)))","v":""}]
[null,null,null,{"$f":"IF($D25=0,\"\",(CONCATENATE(\"  did \",$E25)))","v":""}]
[null,null,null,{"$f":"IF($D25=0,\"\",(CONCATENATE(\"  num-rings \",$G25)))","v":""}]
[null,null,null,{"$f":"IF($D25=0,\"\",(CONCATENATE(\"  sip-identity \",$D25,\" \",$B$29)))","v":""}]
[null,null,null,{"$f":"IF($D25=0,\"\",(CONCATENATE(\"  sip-authentication password \",$B$33)))","v":""}]
[null,null,null,{"$f":"IF($D25=0,\"\",(CONCATENATE(\"  t38\")))","v":""}]
[null,null,null,{"$f":"IF($D25=0,\"\",(CONCATENATE(\"  no nls\")))","v":""}]
[null,null,null,{"$f":"IF($D25=0,\"\",(CONCATENATE(\"  no echo-cancellation\")))","v":""}]
[null,null,null,{"$f":"IF($D25=0,\"\",(CONCATENATE(\"  codec-list default\")))","v":""}]
[null,null,null,{"$f":"IF($D25=0,\"\",(CONCATENATE(\"!\")))","v":""}]
[null,null,null,{"$f":"IF($D26=0,\"\",(CONCATENATE(\"voice user \",$F26)))","v":""}]
[null,null,null,{"$f":"IF($D26=0,\"\",(CONCATENATE(\"  connect \",$C26)))","v":""}]
[null,null,null,{"$f":"IF($D26=0,\"\",(CONCATENATE(\"  cos GLOBAL\")))","v":""}]
[null,null,null,{"$f":"IF($D26=0,\"\",(CONCATENATE(\"  first name \",$D26)))","v":""}]
[null,null,null,{"$f":"IF($D26=0,\"\",(CONCATENATE(\"  last-name fax\")))","v":""}]
[null,null,null,{"$f":"IF($D26=0,\"\",(CONCATENATE(\"  password \",$F26)))","v":""}]
[null,null,null,{"$f":"IF($D26=0,\"\",(CONCATENATE(\"  caller-id-override external-number \",$D26)))","v":""}]
[null,null,null,{"$f":"IF($D26=0,\"\",(CONCATENATE(\"  did \",$D26)))","v":""}]
[null,null,null,{"$f":"IF($D26=0,\"\",(CONCATENATE(\"  did \",$E26)))","v":""}]
[null,null,null,{"$f":"IF($D26=0,\"\",(CONCATENATE(\"  num-rings \",$G26)))","v":""}]
[null,null,null,{"$f":"IF($D26=0,\"\",(CONCATENATE(\"  sip-identity \",$D26,\" \",$B$29)))","v":""}]
[null,null,null,{"$f":"IF($D26=0,\"\",(CONCATENATE(\"  sip-authentication password \",$B$33)))","v":""}]
[null,null,null,{"$f":"IF($D26=0,\"\",(CONCATENATE(\"  t38\")))","v":""}]
[null,null,null,{"$f":"IF($D26=0,\"\",(CONCATENATE(\"  no nls\")))","v":""}]
[null,null,null,{"$f":"IF($D26=0,\"\",(CONCATENATE(\"  no echo-cancellation\")))","v":""}]
[null,null,null,{"$f":"IF($D26=0,\"\",(CONCATENATE(\"  codec-list default\")))","v":""}]
[null,null,null,{"$f":"IF($D26=0,\"\",(CONCATENATE(\"!\")))","v":""}]